Cogmind - Beta 16 @@@ ROGUE MODE // 2025.12.10 @ 23:35:05 Player: Cherman0 Result: Escaped! Performance ------------- Evolutions (9) 4500 Regions Visited (28) 5600 Robots Destroyed (596) 2980 Value Destroyed (30030) 30030 Prototype IDs (69) 1380 Alien Tech Used (0) 0 Bonus (24560) 24560 TOTAL SCORE: 69050 Bonus ------- Triggered High Security 500 High Alert Combat Kills 8613 Follower Combat Kills 4044 Entered Garrisons 2200 Used RIF Installer 6500 Aligned with FarCom 300 Win 3000 Friendly Fire -597 Cogmind --------- Core Integrity 1209/1600 Matter 239/300 Energy 69/100 System Corruption 9% Temperature Cool (6) Movement Treading (160) Location To Epsilon Eridani Parts ------- > --- POWER (3) -------- (None) > --- PROPULSION (6) --- Improved Heavy Treads Improved Heavy Treads > --- UTILITY (13) ----- Advanced Heat Sink Advanced Cooling System Huge Storage Unit Experimental Targeting Computer Core Analyzer Experimental Core Analyzer Graphene Brace Relay Coupler [NC] (41) Relay Coupler [C] (16) > --- WEAPON (3) ------- Enhanced Nova Cannon > --- INVENTORY (25) --- Energy Well (350) Experimental Matter Compressor (500) Advanced Sensor Array Improved Armor Integrity Analyzer Advanced Kinecellerator Advanced Point Defense System Long-range Tractor Beam Chronowheel Latent Energy Streamer Enhanced Nova Cannon Enhanced Hardcell Cannon Enhanced Hardcell Cannon Enhanced Hardcell Cannon Field Lobotomy Kit (1) Improved Plasma Cutter Peak State ------------ > --- POWER ------------ Reinforced Antimatter Reactor Light Quantum Reactor Light Quantum Reactor > --- PROPULSION ------- Improved Heavy Treads Advanced Heavy Treads Advanced Heavy Siege Treads > --- UTILITY ---------- Advanced Heat Sink Experimental Heat Sink Advanced Cooling System Advanced Cooling System Huge Storage Unit Experimental Targeting Computer Core Analyzer Experimental Core Analyzer Quantum Capacitor Advanced Force Field Relay Coupler [NC] Relay Coupler [C] > --- WEAPON ----------- Enhanced Nova Cannon Enhanced Nova Cannon Advanced Remote Datajack > --- INVENTORY -------- Light Antimatter Reactor Improved Heavy Treads Improved Heavy Treads Energy Well Experimental Matter Compressor Advanced Sensor Array Seismic Detector Improved Armor Integrity Analyzer Advanced Kinecellerator Advanced Weapon Cycler Advanced Transmission Jammer Graphene Brace Advanced Point Defense System Long-range Tractor Beam Chronowheel Latent Energy Streamer Enhanced Nova Cannon Enhanced Nova Cannon Enhanced Hardcell Cannon Enhanced Hardcell Cannon Enhanced Hardcell Cannon Field Lobotomy Kit Improved Plasma Cutter [Rating: 194] Favorites ----------- Power Light Quantum Reactor Engine Improved Ion Engine Power Core Nuclear Core Reactor Light Quantum Reactor Propulsion Light Treads Treads Light Treads Leg Myomer Leg Utility Huge Storage Unit Device Seismic Detector Storage Huge Storage Unit Processor Core Analyzer Hackware Relay Coupler [NC] Protection Improved Medium Armor Plating Weapon Heavy Assault Rifle Energy Gun Gatling Laser Energy Cannon Enhanced Nova Cannon Ballistic Gun Heavy Assault Rifle Ballistic Cannon Enhanced Hardcell Cannon Launcher Mini Grenade Launcher Special Weapon Advanced Remote Datajack Impact Weapon Heavy Flail Piercing Weapon Plasma Lance Special Melee Weapon Datajack Build | -11 -10 -10 -10 -9 -8 -8 -8 -8 -7 -7 -6 -6 -6 -6 -5 -5 -5 -4 -4 -3 -3 -2 -2 -2 -2 -2 -2 -1 ------- Run | Yrd Mat Min Exi Min Mat Gar Mat Gar Fac Gar Fac Gar Fac Gar Fac Gar Fac Fac Gar Res Gar Res Gar Res Gar Res Gar Acc Slots Evolved 18 | . . . . . 4 . . . 2 . 2 . . . 2 . . 2 . 2 . 2 . . . . . 2 Power 2 | . . . . . . . . . . . 1 . . . . . . . . 1 . . . . . . . . Propulsion 4 | . . . . . 1 . . . 1 . . . . . . . . 1 . . . 1 . . . . . . Utility 11 | . . . . . 2 . . . 1 . 1 . . . 2 . . 1 . 1 . 1 . . . . . 2 Weapon 1 | . . . . . 1 . . . . . . . . . . . . . . . . . . . . . . . Parts Attached 289 | 3 11 4 2 4 18 10 11 4 2 19 21 7 6 16 3 11 5 7 18 7 11 4 7 11 14 3 29 21 Power 42 | . 1 1 . 1 1 . 1 . . 1 3 1 1 3 . 3 . . 4 1 2 . 4 1 6 1 2 4 Engine 9 | . 1 1 . 1 . . . . . 1 2 1 . 2 . . . . . . . . . . . . . . Core 7 | . . . . . 1 . 1 . . . 1 . 1 1 . 2 . . . . . . . . . . . . Reactor 26 | . . . . . . . . . . . . . . . . 1 . . 4 1 2 . 4 1 6 1 2 4 Propulsion 65 | 2 2 . . 1 4 3 3 2 1 10 1 1 . 3 . . . 2 6 1 3 1 . 2 1 . 12 4 Treads 56 | 2 2 . . 1 4 3 3 2 1 10 1 1 . 3 . . . 2 6 1 3 1 . 2 1 . 3 4 Leg 9 | . . . . . . . . . . . . . . . . . . . . . . . . . . . 9 . Wheel . | . . . . . . . . . . . . . . . . . . . . . . . . . . . . . Hover . | . . . . . . . . . . . . . . . . . . . . . . . . . . . . . Flight . | . . . . . . . . . . . . . . . . . . . . . . . . . . . . . Utility 103 | 1 4 2 . . 5 3 . . 1 4 10 1 4 6 3 4 2 2 5 5 6 3 2 8 4 1 8 9 Device 54 | 1 2 1 . . . . . . 1 2 4 1 1 5 2 . 1 1 3 2 5 . 2 6 3 1 4 6 Storage 4 | . 2 1 . . . . . . . . . . . . . . . . . . . 1 . . . . . . Processor 9 | . . . . . 2 . . . . 1 1 . . . . . . 1 . . . 1 . . . . . 3 Hackware 13 | . . . . . . . . . . . 1 . 1 . 1 1 1 . . 2 1 1 . 1 1 . 2 . Protection 23 | . . . . . 3 3 . . . 1 4 . 2 1 . 3 . . 2 1 . . . 1 . . 2 . Artifact . | . . . . . . . . . . . . . . . . . . . . . . . . . . . . . Weapon 79 | . 4 1 2 2 8 4 7 2 . 4 7 4 1 4 . 4 3 3 3 . . . 1 . 3 1 7 4 Energy Gun 15 | . . . . . 2 . . . . . 1 4 . 2 . 3 1 2 . . . . . . . . . . Energy Cannon 16 | . . . . . . 1 . . . . 1 . . . . . 1 . 2 . . . 1 . 1 1 5 3 Ballistic Gun 27 | . 2 . . 1 5 2 6 1 . 3 4 . 1 1 . . . 1 . . . . . . . . . . Ballistic Cannon 2 | . . . . . . . . . . . . . . . . . . . . . . . . . 1 . 1 . Launcher 2 | . . . . 1 . 1 . . . . . . . . . . . . . . . . . . . . . . Special Weapon 12 | . 2 . 1 . . . . 1 . 1 1 . . . . 1 1 . 1 . . . . . 1 . 1 1 Impact Weapon 2 | . . . . . 1 . 1 . . . . . . . . . . . . . . . . . . . . . Slashing Weapon . | . . . . . . . . . . . . . . . . . . . . . . . . . . . . . Piercing Weapon 1 | . . . . . . . . . . . . . . 1 . . . . . . . . . . . . . . Special Melee Weapon 2 | . . 1 1 . . . . . . . . . . . . . . . . . . . . . . . . . Unidentified Prototypes 13 | . . . . . 4 . . . . . 1 . . 2 . . . 2 . 1 . . . 2 . . . 1 Parts Lost 60 | . 1 . . . 2 . . . . 1 . 1 . 5 . 2 3 1 2 1 4 . 5 2 8 . 5 17 Power 11 | . . . . . . . . . . . . . . . . 1 . . 1 . 2 . 1 1 2 . . 3 Propulsion 8 | . . . . . . . . . . . . 1 . . . . 1 . . . . . . . 1 . 2 3 Utility 28 | . 1 . . . 2 . . . . 1 . . . 3 . 1 1 . . 1 2 . 2 1 4 . 1 8 Weapon 13 | . . . . . . . . . . . . . . 2 . . 1 1 1 . . . 2 . 1 . 2 3 Highest Loss Streak 12 | . 1 . . . 1 . . . . 1 . 1 . 3 . 1 2 1 2 1 4 . 2 1 2 . 3 12 To Critical Strikes 1 | . . . . . . . . . . . . 1 . . . . . . . . . . . . . . . . Average Backups 22 | 6 11 19 21 23 24 24 25 24 24 24 23 23 23 22 21 21 21 20 23 23 21 21 22 22 21 24 24 22 Power . | 1 . . . . . 1 . . . . . . . . . . 1 1 1 . . . 1 1 1 3 2 . Propulsion 2 | 4 4 5 4 4 3 4 4 4 3 3 2 2 2 1 2 2 2 1 1 1 1 1 1 1 . . 1 1 Utility 9 | . 3 7 9 9 8 9 10 10 10 9 9 9 10 8 8 8 7 7 13 13 12 12 12 13 11 11 11 10 Weapon 6 | 1 2 4 7 7 8 7 7 6 6 6 6 8 7 7 7 7 7 5 4 5 4 5 4 3 4 7 6 6 Tool/Special . | . . . . . . . . . . . . . . . . . . . . . . . . . . . . . Unused Backups 61 | . 6 4 . 2 7 1 1 4 1 3 2 2 1 3 . 1 . . 7 1 3 . . . . . . 12 Power 2 | . 1 . . . . . . . . . . . . . . . . . 1 . . . . . . . . . Propulsion 11 | . 2 4 . . 1 . . . . 2 . 1 . 1 . . . . . . . . . . . . . . Utility 35 | . 1 . . 2 3 . 1 2 . 1 2 1 1 2 . 1 . . 6 1 3 . . . . . . 8 Weapon 10 | . 2 . . . 3 1 . 1 . . . . . . . . . . . . . . . . . . . 3 Tool/Special 3 | . . . . . . . . 1 1 . . . . . . . . . . . . . . . . . . 1 Average Slot Usage (%) 89 | . 100 100 100 100 89 90 89 90 91 95 85 86 86 85 87 87 87 83 83 82 84 81 78 81 80 82 88 80 Engine 4 | . 14 14 14 14 5 . 2 . . 6 6 6 3 6 11 1 . . . . . . . . . . . . Core 2 | . . . . . 3 9 6 9 7 . 5 6 8 5 . 7 5 5 1 . . . . . . . . . Reactor 3 | . . . . . . . . . . . . . . . . 1 5 4 8 11 13 13 10 12 12 13 13 11 Treads 20 | . 28 28 28 28 26 27 27 27 29 27 13 13 13 13 11 11 11 10 14 14 14 13 13 13 13 13 3 11 Device 12 | . 14 14 14 14 4 . . . 7 7 11 11 11 12 16 16 14 20 17 16 21 20 23 17 22 26 22 24 Storage 7 | . 14 14 14 14 8 9 9 9 7 7 6 6 6 6 5 5 5 5 5 4 4 4 4 4 4 4 4 4 Processor 7 | . . . . . 4 9 9 9 7 13 13 13 13 13 11 11 11 10 10 9 9 8 8 8 5 4 4 11 Hackware 2 | . . . . . . . . . . . 1 . 1 . 4 5 8 10 5 6 3 7 4 7 5 8 11 8 Protection 4 | . . . . . 8 9 8 9 7 7 6 7 6 6 5 5 4 . 2 4 1 . . 3 2 . 1 . Energy Gun 1 | . . . . . . . . . . . . 9 6 10 5 10 13 7 1 . . . . . . . . . Energy Cannon 2 | . . . . . . 1 . 2 . . . 5 2 2 . 1 1 4 6 4 4 4 4 4 4 4 6 5 Ballistic Gun 14 | . 25 28 16 26 26 23 26 19 17 19 18 3 9 3 5 3 . 2 . . . . . 3 1 . . . Special Weapon 1 | . 2 . . . . . . . . . . 1 . . . . . . 3 4 3 4 4 4 3 4 1 3 Peak Build Rating 194 | 7 12 13 23 18 35 42 41 47 44 72 90 93 89 97 95 100 106 119 145 161 163 167 169 176 179 169 175 194 Average Rating 78 | 6 10 12 13 17 31 35 36 41 41 49 85 85 84 87 94 95 101 109 133 150 158 165 164 171 168 168 163 181 On Entrance 87 | 6 7 12 13 18 18 35 37 41 39 42 71 86 84 89 88 95 97 92 118 145 159 159 166 168 161 174 168 157 Avg Prop Armor Cover (%) 6 | . . . . . . . . . . . . . . 9 . . . 10 . 4 4 . . 9 8 . 7 8 Naked Turns . | . . . . . . . . . . . . . . . . . . . . . . . . . . . . . Heaviest Build 200 | 11 53 94 95 95 116 123 120 126 122 127 150 153 144 143 132 139 144 147 164 177 185 166 171 180 190 182 200 192 Greatest Support 230 | 40 40 40 40 40 63 63 63 63 80 150 150 150 150 150 150 150 150 150 173 180 180 225 225 230 230 230 230 225 Greatest Overweight (x) 2 | . 1 2 2 2 2 1 1 1 1 1 . 1 . 1 . . 1 1 . 1 1 . . 1 1 . 2 1 Average Overweight (x) . | . . 1 2 2 1 1 1 1 1 . . . . . . . . . . . . . . . . . . . Largest Inventory Capacity 25 | 8 20 25 25 25 25 25 25 25 25 25 25 25 25 25 25 25 25 25 25 25 25 25 25 25 25 25 25 25 Average Capacity 24 | 8 17 21 25 25 24 25 25 25 25 25 25 25 25 25 25 25 25 25 25 25 25 25 25 25 25 25 25 25 Most Carried 25 | 8 20 21 25 25 25 25 25 25 25 25 25 25 25 25 25 25 25 23 25 25 25 25 25 25 25 25 25 25 Average Carried 23 | 6 12 20 22 24 24 24 25 24 24 24 24 24 24 24 24 24 24 22 24 24 23 23 24 24 22 25 24 24 Final Capacity 25 | 8 20 25 25 25 25 25 25 25 25 25 25 25 25 25 25 25 25 25 25 25 25 25 25 25 25 25 25 25 Final Carried 25 | 8 20 21 25 25 25 25 25 25 25 25 25 25 25 25 25 25 23 23 25 25 25 24 25 24 25 25 25 15 Class Distribution -------------------- 26% | Mutant 16% | Scavenger-Tank 14% | Scavenger-Mutant 12% | Tank 11% | Skirmisher 10% | Scavenger-Gunner Dominant Class ---------------- Mutant | -10/Materials Mutant | -10/Mines Mutant | -10/Exiles Mutant | -9/Mines Tank | -8/Materials Skirmisher | -8/Garrison Scavenger-Skirmisher | -8/Materials Mutant | -8/Garrison Scavenger-Mutant | -7/Factory Mutant | -7/Garrison Tank | -6/Factory Scavenger-Tank | -6/Garrison Scavenger-Tank | -6/Factory Scavenger-Tank | -6/Garrison Scavenger-Mutant | -5/Factory Scavenger-Tank | -5/Garrison Scavenger-Tank | -5/Factory Scavenger-Tank | -4/Factory Scavenger-Mutant | -4/Garrison Mutant | -3/Research Scavenger-Mutant | -3/Garrison Scavenger-Mutant | -2/Research Scavenger-Gunner | -2/Garrison Scavenger-Gunner | -2/Research Scavenger-Tank | -2/Garrison Scavenger-Tank | -2/Research Scavenger-Gunner | -2/Garrison Scavenger-Mutant | -1/Access Resources | -11 -10 -10 -10 -9 -8 -8 -8 -8 -7 -7 -6 -6 -6 -6 -5 -5 -5 -4 -4 -3 -3 -2 -2 -2 -2 -2 -2 -1 ----------- Run | Yrd Mat Min Exi Min Mat Gar Mat Gar Fac Gar Fac Gar Fac Gar Fac Gar Fac Fac Gar Res Gar Res Gar Res Gar Res Gar Acc Matter Collected 16664 | 248 631 212 10 211 1339 831 615 620 255 1723 1360 773 150 914 . 612 294 114 1106 354 1224 80 558 253 468 71 827 811 Remotely . | . . . . . . . . . . . . . . . . . . . . . . . . . . . . . Salvage Created 32842 | 185 1072 390 . 155 1864 1086 891 622 289 1831 1261 1594 299 2113 . 801 667 257 1594 312 1882 65 1650 1565 2337 116 2627 5317 Parts 1506 | 16 57 13 . 20 106 63 69 33 15 95 56 66 13 79 . 31 29 5 74 12 76 2 58 74 113 3 131 197 Haulers Intercepted 16 | . 1 . . . 5 . 3 . . . 3 . 1 . . . . 1 . . . . . 1 . . . 1 Recyclers Shooed 3 | 1 . . . . . . . . . . . . . . . . . 1 . . . . . 1 . . . . Parts Field Recycled . | . . . . . . . . . . . . . . . . . . . . . . . . . . . . . Retrieved Matter . | . . . . . . . . . . . . . . . . . . . . . . . . . . . . . Parts Self-Destructed . | . . . . . . . . . . . . . . . . . . . . . . . . . . . . . Prevented . | . . . . . . . . . . . . . . . . . . . . . . . . . . . . . Parts Restored . | . . . . . . . . . . . . . . . . . . . . . . . . . . . . . Kills | -11 -10 -10 -10 -9 -8 -8 -8 -8 -7 -7 -6 -6 -6 -6 -5 -5 -5 -4 -4 -3 -3 -2 -2 -2 -2 -2 -2 -1 ------- Run | Yrd Mat Min Exi Min Mat Gar Mat Gar Fac Gar Fac Gar Fac Gar Fac Gar Fac Fac Gar Res Gar Res Gar Res Gar Res Gar Acc Combat Hostiles Destroyed 495 | . 20 3 . 9 28 27 12 21 6 27 15 28 4 31 . 18 9 3 33 4 24 1 25 16 41 2 27 61 Melee 2 | . . . . . . 1 . . . . . . . . . . . . . . . . . . . . . 1 Guns 216 | . 20 3 . 3 28 23 12 13 6 24 15 20 2 23 . 13 6 1 4 . . . . . . . . . Cannons 173 | . . . . . . . . . . . . . 1 1 . . . 1 16 4 12 1 18 14 26 2 22 55 AOE 79 | . . . . 6 . 2 . 8 . 3 . 8 . 7 . 4 1 . 11 . 9 . 6 . 12 . . 2 Classes Destroyed 24 | 2 5 . . 2 4 2 . . . . 1 1 . 2 . . . . 1 . . . . . . . . 4 Worker 12 | . . . . 1 1 . . . . . . . . . . . 3 . . . . . . 3 . . . 4 Builder 11 | . . . . . 1 . 1 . . . 1 . . . . . 1 1 . . . . . 5 . . . 1 Tunneler 10 | 5 . . . 2 . . . . . . . . . . . . . . . . . . . 1 . . . 2 Hauler 16 | . 1 . . . 5 . 3 . . . 3 . 1 . . . . 1 . . . . . 1 . . . 1 Recycler 18 | 1 3 3 . . 1 . 2 . . . 1 . . . . . 1 . . . . . . 1 . . . 5 Carrier 2 | . . . . . . . . . . . . . . . . . . . . . . . . . . . . 2 Operator 2 | . 2 . . . . . . . . . . . . . . . . . . . . . . . . . . . Watcher 21 | . 3 . . . 5 2 5 . . . 3 . . 1 . . . . . . . . . . . . . 2 Swarmer 123 | . 6 3 . 6 2 9 6 8 . 13 2 8 . 10 . 5 . . 11 . 7 . 6 . 12 1 4 4 Cutter 11 | . . . . . . . . . . . . . . . . . . . 2 . . . 5 . 4 . . . Saboteur 2 | . . . . . . . . . . . . . . . . . . . . . . . . . . . . 2 Grunt 153 | . 14 . . 2 12 4 2 4 4 4 4 10 1 8 . 6 2 1 12 1 10 . 8 6 8 . 6 24 Brawler 9 | . . . . . . . . . . . 2 1 . . . . . . . . . . 2 1 1 . . 2 Duelist 12 | . . . . . 2 1 . 1 . 1 1 . . 1 . . . . . . 1 . . . . . . 4 Sentry 63 | . . . . . 10 5 4 2 . 4 4 3 1 3 . 4 . . 6 . 1 . 2 2 7 1 3 1 Specialist 7 | . . . . . . 3 . . . . . . . 2 . . . . . . . . . . . . 1 1 Hunter 26 | . . . . . 2 2 . 1 . 2 . 4 . 2 . 2 1 . . . 2 . . 2 2 . 1 3 Programmer 73 | . . . . . . 3 . 5 2 4 3 1 2 2 . . 4 2 2 2 3 1 1 5 6 . 10 15 Heavy 1 | . . . . . . . . . . . . . . . . . . . . . . . . . . . . 1 Behemoth 7 | . . . . . . . . . . . . 1 . 1 . . . . . . 1 . 1 . 1 . 2 . Armor Guard 2 | . . . . . . . . . . . . . . . . . 1 . . 1 . . . . . . . . Lightning 1 | . . . . . . . . . . . . . . . . . 1 . . . . . . . . . . . Investigator 1 | . . . . . . . . . . . . . . . . . . . . . . . . . . . . 1 Striker 4 | . . . . . . . . . . . . . . 1 . . . . . . . . 1 . . . . 2 Executioner 5 | . . . . . . . . . . . . . . 1 . 1 . . . . . . 1 . . . . 2 Assembled 1 | . . . . 1 . . . . . . . . . . . . . . . . . . . . . . . . Thug 3 | . . 2 . . . . . . . . . . . . . . . . . . . . . . . . 1 . Savage 1 | . . . . . . . . . . . . . . . . . . . 1 . . . . . . . . . Best Kill Streak 10 | 4 3 3 . 4 4 3 3 4 5 4 3 7 1 8 . 3 4 3 5 3 6 1 5 5 10 1 4 7 Combat Bots Only 10 | . 3 3 . 4 4 3 3 4 5 4 3 7 1 8 . 3 2 2 5 3 6 1 5 4 10 1 4 6 Max Kills in Single Turn 4 | 1 1 1 . 4 2 2 3 4 1 3 1 3 1 2 . 2 2 1 3 1 4 1 3 1 3 1 2 2 Gunslinging 1 | . . . . . . 1 . . . . . . . 1 . 1 . . . . . . . . . . . . Exploded 4 | . . . . 4 . 2 . 4 . 3 . 3 . 2 . 2 1 . 3 . 4 . 3 . 3 . . 1 Melee 1 | . . . . . . 1 . . . . . . . . . . . . . . . . . . . . . 1 Uniques/NPCs Destroyed . | . . . . . . . . . . . . . . . . . . . . . . . . . . . . . Combat | -11 -10 -10 -10 -9 -8 -8 -8 -8 -7 -7 -6 -6 -6 -6 -5 -5 -5 -4 -4 -3 -3 -2 -2 -2 -2 -2 -2 -1 -------- Run | Yrd Mat Min Exi Min Mat Gar Mat Gar Fac Gar Fac Gar Fac Gar Fac Gar Fac Fac Gar Res Gar Res Gar Res Gar Res Gar Acc Hostile Shots Fired 2419 | . 60 10 . 13 129 97 43 55 24 143 132 179 26 193 . 57 110 28 76 44 108 2 69 77 188 12 166 378 Missed 680 | . 15 5 . 3 29 21 11 14 6 43 41 65 9 60 . 13 42 7 19 4 28 2 10 19 55 4 42 113 Hits 1739 | . 45 5 . 10 100 76 32 41 18 100 91 114 17 133 . 44 68 21 57 40 80 . 59 58 133 8 124 265 Melee 49 | . . . . . 6 . . . . . 4 . . 5 . . 1 . 5 . . . 6 . 5 . . 17 Projectile 1690 | . 45 5 . 10 94 76 32 41 18 100 87 114 17 128 . 44 67 21 52 40 80 . 53 58 128 8 124 248 AOE 9 | . . . . . . . . . . . . . . . . . . . 2 . . . 2 . 4 . . 1 Critical Strikes 87 | . . . . . 3 2 . 1 . 6 2 5 . 5 . 2 3 3 7 4 4 . 5 5 8 . 5 17 Actively Blocked 25 | . . . . . . . . . . . . . . 1 . . . . 5 . 1 . 3 . 1 . . 14 Part Disruptions 10 | . . . . . . . . . . . . . . 1 . . . 1 . 1 . . . 1 1 . 1 4 Damage Taken 29394 | . 374 30 . 70 1309 941 377 618 289 1453 1315 1381 184 2103 . 983 1470 365 1297 1067 1184 . 1314 1043 2373 97 1893 5864 Core 2465 | . 55 7 . 12 66 40 7 44 34 133 94 111 22 262 . 64 106 41 109 115 78 . 190 21 211 . 252 391 Absorbed by Shields 6952 | . 130 14 . 23 297 29 . . . 55 . . . 399 . . . 138 137 . 721 . 552 159 1400 101 1454 1343 Reduced by Siege Mode 529 | . . . . . . . . . . . . . . 100 . 30 54 . 86 92 36 . . . 123 . 8 . Ignored by Resistances 273 | . . . . . . . . . . . . 226 12 . . . . . . . . . . . . . 35 . Regen/Repaired (Parts) 3384 | . 345 . . . 896 . 204 . . . 293 . . . 29 . 194 . . . . . . . . . . 1423 Core Remaining (%) 74 | 100 . . . 70 . . . 71 . 76 . . . 42 . . 83 . 86 . 85 . . . . . 53 75 Volleys Fired 2089 | 9 75 21 . 11 111 57 53 33 31 153 72 95 14 84 . 59 42 23 111 49 102 10 109 120 161 20 177 287 Largest 3 | 2 2 2 . 2 3 3 3 3 3 3 3 3 3 3 . 3 3 3 3 1 1 1 1 1 2 1 3 3 Hottest 360 | 40 100 46 . 100 100 74 81 91 91 88 150 250 250 250 . 240 258 258 208 120 120 120 120 120 150 120 360 360 Shots Fired 3271 | 18 131 42 . 18 331 164 135 76 66 259 176 181 32 145 . 113 92 41 129 49 102 10 112 120 163 20 212 334 Gun 1854 | 18 112 42 . 13 330 162 135 70 66 248 152 127 24 123 . 108 71 23 30 . . . . . . . . . Cannon 1178 | . . . . . . . . . . 1 15 44 5 13 . . 10 15 82 39 91 10 73 115 150 17 196 302 Launcher 60 | . . . . 2 . 2 . 6 . 3 . 4 . 8 . 3 . . 8 . 6 . 6 . 12 . . . Special 179 | . 19 . . 3 1 . . . . 7 9 6 3 1 . 2 11 3 9 10 5 . 33 5 1 3 16 32 Kinetic 1528 | 18 112 42 . 13 330 162 135 70 66 248 152 44 14 53 . 37 2 11 15 . . . . . . . 1 3 Thermal 1525 | . 19 . . 3 1 . . . . . 15 127 15 83 . 71 79 27 97 39 91 10 72 115 150 17 195 299 Explosive 60 | . . . . 2 . 2 . 6 . 3 . 4 . 8 . 3 . . 8 . 6 . 6 . 12 . . . Electromagnetic 2 | . . . . . . . . . . 1 . . . . . . . . . . . . 1 . . . . . Robot Hit Streak 52 | 5 8 9 . 4 14 26 9 10 6 34 15 52 23 45 . 38 35 13 43 27 30 3 22 17 30 15 25 28 Robot Miss Streak 6 | 1 5 2 . 1 4 4 3 5 3 6 3 2 2 3 . 2 3 4 4 1 1 1 2 1 3 2 3 3 Penetration Max 1 | . . . . . . . 1 1 1 . . . . . . . . 1 . . . . . . . . . . Secondary Targets 36 | . 1 . . . 6 5 . 1 . 5 3 5 . 6 . 2 2 . . . . . . . . . . . Max Gunslinging Chain 1 | . 1 . . . 1 1 . 1 . 1 1 1 . 1 . 1 1 . . . . . . . . . . . Capacitor 884 | . . . . . . . . . . . . . . . . . . . 82 39 91 10 73 115 148 17 129 180 Shots Hit Robots 2194 | 11 73 31 3 8 214 111 69 38 28 177 125 137 25 127 . 67 69 25 89 44 83 4 86 60 118 16 122 234 Core Hits 1253 | 9 38 15 . 11 80 60 33 34 12 88 43 111 10 119 . 68 64 13 67 10 49 1 43 31 82 3 50 109 Critical Kills 27 | . 1 . . 1 . 1 1 1 . 1 . 1 . . . . . . 2 . 2 . . 2 3 . 6 5 Critical Parts Destroyed 10 | . . . . . 1 2 . . 2 . 1 1 . . . . . 1 2 . . . . . . . . . Critical Strikes 40 | . 1 . . 1 1 3 1 1 2 1 1 2 . 2 . . . 1 4 . 3 . . 2 3 . 6 5 Meltdown 21 | . . . . . . . . . . . . 1 . . . . . . 2 . 2 . . 2 3 . 6 5 Destroy 15 | . 1 . . 1 1 2 1 1 2 1 1 1 . . . . . 1 2 . . . . . . . . . Smash 1 | . . . . . . 1 . . . . . . . . . . . . . . . . . . . . . . Impale 3 | . . . . . . . . . . . . . . 2 . . . . . . 1 . . . . . . . Melee Attacks 181 | . . 1 3 . 2 50 1 20 14 34 2 . . 32 1 2 . . 1 . 18 . . . . . . . Impact 121 | . . . . . 2 48 1 20 14 34 2 . . . . . . . . . . . . . . . . . Slashing . | . . . . . . . . . . . . . . . . . . . . . . . . . . . . . Piercing 54 | . . . . . . . . . . . . . . 32 1 2 . . 1 . 18 . . . . . . . Sneak Attacks 10 | . . 1 3 . . 3 . . 1 . 2 . . . . . . . . . . . . . . . . . Combat Hostiles . | . . . . . . . . . . . . . . . . . . . . . . . . . . . . . Follow-up Attacks . | . . . . . . . . . . . . . . . . . . . . . . . . . . . . . Damage Inflicted 71330 | 93 1112 523 . 520 3193 2055 1275 1649 745 3725 3174 4512 630 5157 . 2287 1606 793 3981 1274 4986 213 3308 2705 6715 541 5193 9365 Guns 25812 | 93 1107 497 . 127 3187 1467 1202 1038 643 3365 2668 2870 549 2506 . 1826 1385 635 647 . . . . . . . . . Cannons 33174 | . . . . . . . . . . . 102 868 81 222 . . 42 158 2344 1248 2648 213 2463 2596 5211 541 5187 9250 Explosions 8407 | . . . . 384 . 343 . 611 . 355 . 774 . 1014 . 461 179 . 990 . 927 . 819 . 1504 . . 46 Melee 3389 | . . . . . . 237 . . 102 . 282 . . 1373 . . . . . . 1395 . . . . . . . Ramming 548 | . 5 26 . 9 6 8 73 . . 5 122 . . 42 . . . . . 26 16 . 26 109 . . 6 69 Kinetic 18192 | 93 1107 497 . 127 3187 1467 1202 1038 643 3365 2668 780 288 813 . 184 18 303 259 . . . . . . . . 153 Thermal 40973 | . . . . . . . . . . . 102 2958 342 1915 . 1642 1588 490 2732 1248 2648 213 2463 2596 5211 541 5187 9097 Explosive 8041 | . . . . 384 . 343 . 611 . 355 . 774 . 1014 . 461 . . 990 . 927 . 632 . 1504 . . 46 Electromagnetic 187 | . . . . . . . . . . . . . . . . . . . . . . . 187 . . . . . Impact 621 | . . . . . . 237 . . 102 . 282 . . . . . . . . . . . . . . . . . Slashing . | . . . . . . . . . . . . . . . . . . . . . . . . . . . . . Piercing 2768 | . . . . . . . . . . . . . . 1373 . . . . . . 1395 . . . . . . . Highest Corruption 24 | . . . . . . . . 3 2 9 2 3 3 4 . 1 3 5 6 1 3 . 8 8 11 11 24 9 Average Corruption 6 | . . . . . . . . 2 1 6 1 2 2 3 . 1 1 4 5 1 3 . 6 4 6 11 21 5 Corruption Purged 17 | . . . . . . . . . . . . . 3 . . . . . . . . . . 7 7 . . . Corruption Blocked . | . . . . . . . . . . . . . . . . . . . . . . . . . . . . . Effects 501 | . . . . . . . . 13 6 68 13 24 6 28 . 2 7 . 42 . 23 . 13 23 36 17 116 64 Message Errors 118 | . . . . . . . . 3 1 17 2 5 . 2 . . 3 . 9 . 2 . 5 12 8 2 31 16 Matter Fused 116 | . . . . . . . . 2 2 19 2 4 1 8 . . 4 . 9 . 8 . 1 4 8 4 24 16 Heat Flow Errors 57 | . . . . . . . . 2 . 5 2 2 1 3 . . . . 8 . 4 . . 2 8 2 10 8 Energy Discharges 47 | . . . . . . . . 3 1 7 1 5 1 3 . . . . 2 . 3 . 3 . 1 4 9 4 Parts Rejected 7 | . . . . . . . . . . . 1 . . . . . . . . . . . . . 1 . . 5 Parts Fused 5 | . . . . . . . . . . . . . . 2 . . . . . . . . . . . 1 2 . Data Loss (minor) 69 | . . . . . . . . 1 1 6 2 3 2 4 . 1 . . 9 . 5 . 1 3 6 4 17 4 Data Loss (major) 23 | . . . . . . . . . . 5 1 2 . 4 . . . . 1 . . . . 1 1 . 6 2 Misfires 20 | . . . . . . . . . 1 3 1 1 . 1 . 1 . . 1 . . . 3 . 1 . 5 2 Alerts 13 | . . . . . . . . 1 . 1 1 1 1 1 . . . . 2 . 1 . . 1 1 . 1 1 Weapon Failures 26 | . . . . . . . . 1 . 5 . 1 . . . . . . 1 . . . . . 1 . 11 6 Overload Shots . | . . . . . . . . . . . . . . . . . . . . . . . . . . . . . Overflow Damage 1272 | . . . . 21 . 51 . . . 23 198 73 . 186 . 13 . . 104 48 85 13 35 25 168 11 50 168 Projectiles 545 | . . . . . . . . . . . . 4 . . . . . . 65 37 12 13 13 20 152 11 50 168 Explosions 249 | . . . . 21 . 4 . . . 23 . 69 . 11 . 13 . . 39 . 31 . 22 . 16 . . . Melee 478 | . . . . . . 47 . . . . 198 . . 175 . . . . . 11 42 . . 5 . . . . Knockbacks 6 | . . . . . . . 2 . 1 . 2 . . . . . . . . . . . . . . . . 1 Impact 6 | . . . . . . . 2 . 1 . 2 . . . . . . . . . . . . . . . . 1 Kinetic . | . . . . . . . . . . . . . . . . . . . . . . . . . . . . . Secondary . | . . . . . . . . . . . . . . . . . . . . . . . . . . . . . Self-Inflicted Damage 643 | . . . . . . . . 40 . 87 . . . 39 . 28 . . 77 . 10 . 232 . 130 . . . Shots 22 | . . . . . . . . 2 . 2 . . . 3 . 1 . . 3 . 1 . 5 . 5 . . . Rammed 44 | . 3 5 . 2 1 1 6 . . 1 6 . . 2 . . . . . 1 1 . 4 6 . . 1 4 Targets Rammed 47 | . 3 5 . 3 2 1 6 . . 1 6 . . 2 . . . . . 1 1 . 4 6 . . 1 5 Kicked . | . . . . . . . . . . . . . . . . . . . . . . . . . . . . . Crushed 3 | . . . . 1 1 . . . . . . . . . . . . . . . . . . . . . . 1 Highest Temperature 581 | . 60 . . 24 253 139 183 310 259 362 214 327 193 581 . 27 186 33 243 298 393 . 72 224 333 392 492 324 Average Temperature 78 | . 18 . . 13 40 40 40 108 113 109 35 83 57 141 . 12 65 21 90 153 153 . 48 71 137 173 114 61 Received Heat Transfer 4522 | . 172 . . 14 388 207 108 54 117 132 366 460 36 163 . 162 177 21 172 168 120 . 54 127 623 8 113 560 Effects 16 | . . . . . . . . . . . . . . 11 . . . . . . . . . . . . 5 . Shutdowns 2 | . . . . . . . . . . . . . . 2 . . . . . . . . . . . . . . Energy Bleed 6 | . . . . . . . . . . . . . . 6 . . . . . . . . . . . . . . Interference 3 | . . . . . . . . . . . . . . . . . . . . . . . . . . . 3 . Damage (minor) 1 | . . . . . . . . . . . . . . 1 . . . . . . . . . . . . . . Damage (major) 4 | . . . . . . . . . . . . . . 2 . . . . . . . . . . . . 2 . Siege Activations 14 | . . . . . . . . . . . . . . 4 . 2 1 . 1 1 2 . . . 1 . 1 1 Total Turns 274 | . . . . . . . . . . . . . . 96 . 36 29 . 15 37 26 . . . 24 . 7 4 Longest Duration 57 | . . . . . . . . . . . . . . 57 . 19 29 . 15 37 19 . . . 24 . 7 4 Martial Activations . | . . . . . . . . . . . . . . . . . . . . . . . . . . . . . Shielding Activations . | . . . . . . . . . . . . . . . . . . . . . . . . . . . . . Robots Disrupted . | . . . . . . . . . . . . . . . . . . . . . . . . . . . . . Combat Hostiles . | . . . . . . . . . . . . . . . . . . . . . . . . . . . . . Robots Corrupted 8 | . . . . . . 2 . . . . 3 . . . . . . . . . . . 2 1 . . . . Combat Hostiles 2 | . . . . . . 1 . . . . . . . . . . . . . . . . 1 . . . . . Parts Fried 11 | . . . . . . 1 . . . . 4 . . . . . . . . . . . 5 1 . . . . Impact Corruptions 11 | . . . . . . 3 . . . . 6 . . . . . . . . 1 . . . 1 . . . . Robots Melted 27 | . . . . . . . . . . . . 1 1 . . 1 2 1 2 . 3 . . 2 3 . 6 5 Combat Hostiles 23 | . . . . . . . . . . . . . 1 . . 1 2 1 2 . 3 . . 2 3 . 5 3 Parts Melted 121 | . . . . . . . . . . . . 17 4 8 . 8 7 2 11 1 6 2 4 5 17 2 12 15 Heat Transferred 45688 | . . . . . . . . . . . 150 6000 625 3779 . 3725 3465 925 2899 1295 2220 148 2043 2146 4216 481 4216 7355 Parts Sabotaged 2 | . . . . . . . . . . . . . . . . . 1 . . . . . . . . . . 1 Parts Stolen . | . . . . . . . . . . . . . . . . . . . . . . . . . . . . . Parts Stripped . | . . . . . . . . . . . . . . . . . . . . . . . . . . . . . Power Chain Reactions . | . . . . . . . . . . . . . . . . . . . . . . . . . . . . . Latent Energy Used 329 | . . . . . . . . . . 129 . . . . . . . . . . . . 200 . . . . . LE Corruption 5 | . . . . . . . . . . 2 . . . . . . . . . . . . 3 . . . . . Alert | -11 -10 -10 -10 -9 -8 -8 -8 -8 -7 -7 -6 -6 -6 -6 -5 -5 -5 -4 -4 -3 -3 -2 -2 -2 -2 -2 -2 -1 ------- Run | Yrd Mat Min Exi Min Mat Gar Mat Gar Fac Gar Fac Gar Fac Gar Fac Gar Fac Fac Gar Res Gar Res Gar Res Gar Res Gar Acc Maximum Alert Level 5 | . 1 . . . 1 3 2 2 1 3 2 3 2 3 2 3 2 . 3 2 3 2 4 2 4 3 5 5 Low Security (%) 39 | 100 87 100 . 100 85 8 43 23 73 23 69 5 . 4 . . 53 100 18 . . . . . . . . . Level 1 18 | . 12 . . . 14 37 55 24 26 36 28 22 75 15 59 24 34 . 11 51 35 . 9 . . . . . Level 2 20 | . . . . . . 23 . 52 . 32 2 50 24 46 40 54 11 . 47 48 34 100 24 100 25 33 12 . Level 3 15 | . . . . . . 30 . . . 8 . 21 . 33 . 20 . . 22 . 30 . 43 . 53 66 41 61 Level 4 4 | . . . . . . . . . . . . . . . . . . . . . . . 22 . 21 . 41 17 Level 5 . | . . . . . . . . . . . . . . . . . . . . . . . . . . . 3 2 High Security 1 | . . . . . . . . . . . . . . . . . . . . . . . . . . . . 18 Max Security . | . . . . . . . . . . . . . . . . . . . . . . . . . . . . . Peak Influence 2654 | 15 257 159 . 104 262 1005 489 684 359 796 417 825 432 876 459 903 473 51 978 549 811 504 1176 661 1382 777 1657 2654 Initial 993 | . . 94 . . . 170 489 2 359 11 417 184 432 179 459 208 473 50 28 549 234 456 309 661 409 777 492 993 Average 413 | 4 110 15 . 10 120 513 190 380 129 349 151 502 334 591 382 522 240 13 526 412 548 466 810 540 900 713 1052 1236 Influence Increases 17246 | 30 697 122 . 306 918 855 467 702 139 855 615 651 118 807 9 805 382 96 1030 98 627 126 1157 525 1073 59 1335 2642 Destroy 0b10 Robot/C 9215 | . 400 80 . 240 560 560 240 355 90 435 240 450 60 495 . 450 120 45 555 45 360 30 615 240 615 30 555 1350 Destroy 0b10 Robot/NC 572 | 30 45 15 . 15 65 15 55 . . 28 36 16 4 32 . . 20 8 . . 16 4 . 44 . . 20 104 Destroy Leader 1318 | . 98 10 . 20 170 30 76 32 24 24 100 32 34 48 . 24 24 10 24 8 40 8 56 58 56 8 64 240 Allied During Kill 1029 | . . 2 . 11 . 2 . 25 . 12 4 6 8 13 . 85 10 . 112 . 6 6 224 . . . 125 378 Trap Triggered on 0b10 10 | . . . . . 10 . . . . . . . . . . . . . . . . . . . . . . . Successful Hack 348 | . 11 . . . 50 . 51 45 . 11 26 11 9 28 7 5 4 11 6 27 29 . 6 . . . 11 . Select Force Hacks 60 | . 60 . . . . . . . . . . . . . . . . . . . . . . . . . . . Disable Machine 534 | . . 15 . . 15 . 30 30 12 48 . 12 . . . . 144 . 12 12 . 12 24 24 60 12 24 48 Anti-Garrison Action 1441 | . . . . . . 200 . 150 . 150 113 75 . 75 . 113 . . 189 . . . . . 113 . 263 . Destroy Structure 2122 | . 23 . . 20 3 48 15 65 13 75 12 49 3 92 2 116 48 22 132 6 128 66 184 123 181 9 213 474 Partial Spotted 36 | . . . . . . . . . . . . . . . . 12 . . . . . . . 12 . . 12 . Lose Combat Pursuer 561 | . 60 . . . 45 . . . . 72 84 . . 24 . . 12 . . . 48 . 48 24 48 . 48 48 Influence Decreases 14657 | 30 455 364 . 306 656 112 1468 22 806 76 1147 90 687 187 587 200 1182 159 92 763 129 525 393 1155 237 785 334 1710 Entered New Map 6071 | . . 148 . . . 92 516 2 325 6 379 80 393 77 417 90 430 53 12 429 79 355 103 515 137 605 164 664 Time Decay 5906 | 30 445 216 . 246 616 . 642 . 481 . 578 . 254 . 170 . 362 106 . 294 . 170 . 470 . 180 . 646 Lost Part 580 | . 10 . . . 10 . . . . 10 . 10 . 50 . 20 30 . 20 10 40 . 50 20 80 . 50 170 Lost Ally 1200 | . . . . 60 30 20 10 20 . 60 40 . 40 60 . 90 60 . 60 30 10 . 240 . 20 . 120 230 Purge Threat 900 | . . . . . . . 300 . . . 150 . . . . . 300 . . . . . . 150 . . . . Squads Dispatched 69 | . 5 . . . 4 . 1 . 2 . 9 . 2 . . . 3 1 . 3 . 1 . 7 . 2 . 29 Investigation 5 | . 3 . . . . . . . . . 1 . . . . . . . . . . . . . . 1 . . Extermination 20 | . . . . . . . . . 2 . 4 . 1 . . . 2 1 . 2 . . . 2 . 1 . 5 Reinforcement 14 | . 2 . . . 1 . . . . . 1 . 1 . . . 1 . . 1 . . . 1 . . . 6 Assault 25 | . . . . . . . . . . . 2 . . . . . . . . . . 1 . 4 . . . 18 Garrison 5 | . . . . . 3 . 1 . . . 1 . . . . . . . . . . . . . . . . . Intercept . | . . . . . . . . . . . . . . . . . . . . . . . . . . . . . Searches Triggered . | . . . . . . . . . . . . . . . . . . . . . . . . . . . . . Unchained Authorized 2 | . . . . . . . . . . . . . . . . . 1 . . 1 . . . . . . . . Construction Impeded . | . . . . . . . . . . . . . . . . . . . . . . . . . . . . . Haulers Reinforced 2 | . . . . . . . . . . . 1 . . . . . . . . . . . . . . . . 1 Active Scanning Responses . | . . . . . . . . . . . . . . . . . . . . . . . . . . . . . Cargo Convoy Interrupts 1 | . . . . . . . . . . . . . . . . . 1 . . . . . . . . . . . Alert ID Control Effect 6 | . . . . . . . . . . . . . . . . 2 . . . 1 . . 1 . . . 1 1 Stealth | -11 -10 -10 -10 -9 -8 -8 -8 -8 -7 -7 -6 -6 -6 -6 -5 -5 -5 -4 -4 -3 -3 -2 -2 -2 -2 -2 -2 -1 --------- Run | Yrd Mat Min Exi Min Mat Gar Mat Gar Fac Gar Fac Gar Fac Gar Fac Gar Fac Fac Gar Res Gar Res Gar Res Gar Res Gar Acc Distress Signals 16 | . 2 . . . 4 2 5 . 1 . . . . . . . 1 . . . . . . . . . . 1 Communications Jammed 442 | . . . . . . . . . . . . . . . . . 9 3 . . . . . 112 . . . 318 Distress Signals 441 | . . . . . . . . . . . . . . . . . 9 2 . . . . . 112 . . . 318 Times Spotted 767 | . 25 6 . 11 40 28 24 22 6 34 31 29 7 39 3 24 27 7 39 14 26 2 40 44 43 3 40 153 Peak Tracking Total 15 | . 3 3 . 4 5 3 3 5 4 4 5 7 3 6 2 4 11 3 5 4 4 1 7 6 13 1 6 15 Tactical Retreats 29 | . 3 . . . 3 . . . . 3 4 . . 2 . . 1 . . . 2 . 3 2 2 . 2 2 Traps | -11 -10 -10 -10 -9 -8 -8 -8 -8 -7 -7 -6 -6 -6 -6 -5 -5 -5 -4 -4 -3 -3 -2 -2 -2 -2 -2 -2 -1 ------- Run | Yrd Mat Min Exi Min Mat Gar Mat Gar Fac Gar Fac Gar Fac Gar Fac Gar Fac Fac Gar Res Gar Res Gar Res Gar Res Gar Acc Traps Triggered 64 | . 1 . . . . 2 1 7 3 5 . 7 . 3 . 2 . 4 3 . 5 . 5 . 1 . 13 2 Indirectly 1 | . . . . . . . . . . . . . . . . . . . . . . . 1 . . . . . Trap Hack Attempts 4 | . . . . . 4 . . . . . . . . . . . . . . . . . . . . . . . Triggered . | . . . . . . . . . . . . . . . . . . . . . . . . . . . . . Disarmed 1 | . . . . . 1 . . . . . . . . . . . . . . . . . . . . . . . Reprogrammed 1 | . . . . . 1 . . . . . . . . . . . . . . . . . . . . . . . Reused 1 | . . . . . 1 . . . . . . . . . . . . . . . . . . . . . . . Traps Extracted . | . . . . . . . . . . . . . . . . . . . . . . . . . . . . . Installed . | . . . . . . . . . . . . . . . . . . . . . . . . . . . . . Triggered 1 | . . . . . 1 . . . . . . . . . . . . . . . . . . . . . . . Machines | -11 -10 -10 -10 -9 -8 -8 -8 -8 -7 -7 -6 -6 -6 -6 -5 -5 -5 -4 -4 -3 -3 -2 -2 -2 -2 -2 -2 -1 ---------- Run | Yrd Mat Min Exi Min Mat Gar Mat Gar Fac Gar Fac Gar Fac Gar Fac Gar Fac Fac Gar Res Gar Res Gar Res Gar Res Gar Acc Machines Disabled 55 | . . 1 . . 1 . 2 2 1 4 1 1 . . . 2 12 . 4 1 . 1 4 2 6 1 5 4 Max in Single Turn 12 | . . 1 . . 1 . 1 1 1 1 . 1 . . . 1 12 . 1 1 . 1 2 1 2 1 1 1 Garrison Access 4 | . . . . . . . . . . . 1 . . . . . . . . . . . . 1 . . . 2 Garrison Relay 7 | . . . . . . . . . . . . . . . . 2 . . 3 . . . . . 1 . 1 . Phase Generator 2 | . . . . . . . . . . . . . . . . . . . 1 . . . . . 1 . . . Energy Cycler 1 | . . . . . . . . . . . . . . . . . . . . . . . . . . . . 1 Machines Repaired . | . . . . . . . . . . . . . . . . . . . . . . . . . . . . . Machines Dismantled 4 | . . . . . . . . 1 . . . 1 . . . 1 . . . . . . . . . . . 1 Machines Sabotaged . | . . . . . . . . . . . . . . . . . . . . . . . . . . . . . Overloaded Fab Kills . | . . . . . . . . . . . . . . . . . . . . . . . . . . . . . Hacking | -11 -10 -10 -10 -9 -8 -8 -8 -8 -7 -7 -6 -6 -6 -6 -5 -5 -5 -4 -4 -3 -3 -2 -2 -2 -2 -2 -2 -1 --------- Run | Yrd Mat Min Exi Min Mat Gar Mat Gar Fac Gar Fac Gar Fac Gar Fac Gar Fac Fac Gar Res Gar Res Gar Res Gar Res Gar Acc Machines Accessed 110 | . 8 . 2 . 14 2 11 3 3 1 13 3 5 3 5 2 4 4 2 4 5 1 1 5 . 2 3 4 Terminals 61 | . 5 . . . 9 2 7 3 2 1 5 3 . 3 1 2 2 1 2 . 5 . 1 2 . 1 3 1 Fabricators 3 | . . . . . . . . . . . 1 . . . . . 1 1 . . . . . . . . . . Repair Stations 11 | . 1 . . . 2 . 1 . . . 3 . 1 . 1 . 1 1 . . . . . . . . . . Recycling Units 5 | . 2 . . . . . . . . . 1 . 1 . 1 . . . . . . . . . . . . . Scanalyzers 14 | . . . . . 2 . 2 . . . 2 . 2 . 1 . . . . 3 . . . 1 . . . 1 Garrison Access 14 | . . . . . 1 . 1 . 1 . 1 . 1 . 1 . . 1 . 1 . 1 . 2 . 1 . 2 Total Hacks 254 | . 29 . 2 . 50 6 31 7 3 2 30 5 7 4 10 3 8 10 3 6 8 1 1 12 . 7 4 5 Successful 144 | . 15 . 2 . 39 . 22 4 1 1 15 1 3 3 9 1 5 4 1 3 3 1 1 5 . 1 2 2 Failed 109 | . 13 . . . 11 6 9 3 2 1 15 4 4 1 1 2 3 6 2 3 5 . . 7 . 6 2 3 Catastrophic 20 | . 1 . . . 1 1 . 3 2 . 2 3 2 . . 1 1 1 . . . . . 1 . 1 . . Database Lockouts 1 | . 1 . . . . . . . . . . . . . . . . . . . . . . . . . . . Manual 104 | . 22 . 1 . 25 . 21 3 . . 11 1 1 1 4 . 3 1 . 1 . . . 3 . 6 . . Terminals 145 | . 20 . . . 27 6 21 7 2 2 14 5 . 4 2 3 5 1 3 . 8 . 1 3 . 6 4 1 Fabricators 7 | . . . . . . . . . . . 1 . . . . . 2 4 . . . . . . . . . . Repair Stations 36 | . 5 . . . 12 . 3 . . . 6 . 2 . 3 . 1 4 . . . . . . . . . . Recycling Units 12 | . 4 . . . . . . . . . 3 . 2 . 3 . . . . . . . . . . . . . Scanalyzers 31 | . . . . . 10 . 3 . . . 5 . 2 . 1 . . . . 4 . . . 4 . . . 2 Garrison Access 21 | . . . . . 1 . 4 . 1 . 1 . 1 . 1 . . 1 . 2 . 1 . 5 . 1 . 2 Terminal Hacks 42 | . 5 . 2 . 3 . 5 3 . 1 6 1 . 3 1 1 3 . 1 . 3 . 1 1 . . 2 . Record 1 | . . . 1 . . . . . . . . . . . . . . . . . . . . . . . . . Part Schematic 1 | . 1 . . . . . . . . . . . . . . . . . . . . . . . . . . . Robot Schematic 1 | . 1 . . . . . . . . . . . . . . . . . . . . . . . . . . . Robot Analysis 3 | . 2 . . . . . . . . . 1 . . . . . . . . . . . . . . . . . Prototype ID Bank 1 | . . . . . 1 . . . . . . . . . . . . . . . . . . . . . . . Open Door 6 | . . . . . . . . . . . . . . 1 . 1 . . 1 . 1 . 1 . . . 1 . Branch Access Points 1 | . . . . . . . . . . . 1 . . . . . . . . . . . . . . . . . Emergency Access Points 4 | . . . . . . . . 1 . 1 . . . 1 . . . . . . . . . . . . 1 . Terminal Index 3 | . 1 . . . 1 . 1 . . . . . . . . . . . . . . . . . . . . . Unreport Threat 6 | . . . . . . . 2 . . . 1 . . . . . 2 . . . . . . 1 . . . . Locate Traps 2 | . . . . . . . 1 . . . 1 . . . . . . . . . . . . . . . . . Hauler Manifests 2 | . . . . . . . . . . . 1 . . . . . 1 . . . . . . . . . . . Registered Components 1 | . . . . . . . . . . . . . . . 1 . . . . . . . . . . . . . Zone Layout 3 | . . . . . 1 . 1 . . . 1 . . . . . . . . . . . . . . . . . Garrison Registry 1 | . . . . . . . . . . . . . . . . . . . . . 1 . . . . . . . Patrol Navigation 3 | . . . . . . . . 1 . . . 1 . 1 . . . . . . . . . . . . . . Security Stations 2 | . . . . . . . . 1 . . . . . . . . . . . . 1 . . . . . . . Proto ID Catalog 1 | . . . 1 . . . . . . . . . . . . . . . . . . . . . . . . . Fabricator Hacks 2 | . . . . . . . . . . . . . . . . . 1 1 . . . . . . . . . . Network Status 2 | . . . . . . . . . . . . . . . . . 1 1 . . . . . . . . . . Repair Station Hacks 23 | . 3 . . . 12 . 2 . . . 2 . 1 . 2 . . 1 . . . . . . . . . . Scan Component 13 | . 2 . . . 6 . 1 . . . 1 . 1 . 1 . . 1 . . . . . . . . . . Repair 10 | . 1 . . . 6 . 1 . . . 1 . . . 1 . . . . . . . . . . . . . Recycling Unit Hacks 1 | . . . . . . . . . . . . . . . 1 . . . . . . . . . . . . . Retrieve Components 1 | . . . . . . . . . . . . . . . 1 . . . . . . . . . . . . . Scanalyzer 22 | . . . . . 9 . 3 . . . 5 . . . 1 . . . . 2 . . . 2 . . . . Insert Component 2 | . . . . . 2 . . . . . . . . . . . . . . . . . . . . . . . Analyze 3 | . . . . . 3 . . . . . . . . . . . . . . . . . . . . . . . Retrieve Study 17 | . . . . . 4 . 3 . . . 5 . . . 1 . . . . 2 . . . 2 . . . . Garrison Access Hacks 14 | . . . . . 1 . 1 . 1 . 1 . 1 . 1 . . 1 . 1 . 1 . 2 . 1 . 2 Unlock Access 12 | . . . . . 1 . 1 . 1 . 1 . 1 . 1 . . 1 . 1 . 1 . 2 . 1 . . Seal Access 2 | . . . . . . . . . . . . . . . . . . . . . . . . . . . . 2 Unauthorized Hacks 40 | . 7 . . . 14 . 11 1 . . 1 . 1 . 3 . 1 1 . . . . . . . . . . Terminals 30 | . 5 . . . 14 . 9 1 . . . . . . 1 . . . . . . . . . . . . . Assimilate 9 | . . . . . 8 . . . . . . . . . 1 . . . . . . . . . . . . . Botnet 4 | . 1 . . . 1 . 1 1 . . . . . . . . . . . . . . . . . . . . Operators 2 | . 1 . . . . . 1 . . . . . . . . . . . . . . . . . . . . . Skim 15 | . 3 . . . 5 . 7 . . . . . . . . . . . . . . . . . . . . . Fabricators 2 | . . . . . . . . . . . . . . . . . 1 1 . . . . . . . . . . Haulers 2 | . . . . . . . . . . . . . . . . . 1 1 . . . . . . . . . . Repair Stations 2 | . . . . . . . . . . . 1 . . . 1 . . . . . . . . . . . . . Mechanics 2 | . . . . . . . . . . . 1 . . . 1 . . . . . . . . . . . . . Recycling Units 4 | . 2 . . . . . . . . . . . 1 . 1 . . . . . . . . . . . . . Recyclers 2 | . . . . . . . . . . . . . 1 . 1 . . . . . . . . . . . . . Tunnel 2 | . 2 . . . . . . . . . . . . . . . . . . . . . . . . . . . Scanalyzers . | . . . . . . . . . . . . . . . . . . . . . . . . . . . . . Garrison Access 2 | . . . . . . . 2 . . . . . . . . . . . . . . . . . . . . . Reprogram 1 | . . . . . . . 1 . . . . . . . . . . . . . . . . . . . . . Intercept 1 | . . . . . . . 1 . . . . . . . . . . . . . . . . . . . . . Data Cores Recovered . | . . . . . . . . . . . . . . . . . . . . . . . . . . . . . Used . | . . . . . . . . . . . . . . . . . . . . . . . . . . . . . Hacking Detections 83 | . 7 . . . 9 2 9 2 2 . 12 3 4 2 3 1 3 4 1 4 3 1 . 5 . 2 2 2 Full Trace Events 2 | . . . . . . . . . . . 1 . . . . . . . . . . . . . . 1 . . Feedback Events . | . . . . . . . . . . . . . . . . . . . . . . . . . . . . . Feedback Blocked . | . . . . . . . . . . . . . . . . . . . . . . . . . . . . . Robot Schematics Acquired 1 | . 1 . . . . . . . . . . . . . . . . . . . . . . . . . . . Robots Built . | . . . . . . . . . . . . . . . . . . . . . . . . . . . . . Authchips . | . . . . . . . . . . . . . . . . . . . . . . . . . . . . . Time . | . . . . . . . . . . . . . . . . . . . . . . . . . . . . . Total Robot Build Rating . | . . . . . . . . . . . . . . . . . . . . . . . . . . . . . Part Schematics Acquired 3 | . 1 . . . 2 . . . . . . . . . . . . . . . . . . . . . . . Parts Built . | . . . . . . . . . . . . . . . . . . . . . . . . . . . . . Authchips . | . . . . . . . . . . . . . . . . . . . . . . . . . . . . . Time . | . . . . . . . . . . . . . . . . . . . . . . . . . . . . . Total Part Build Rating . | . . . . . . . . . . . . . . . . . . . . . . . . . . . . . Part Studies Acquired 17 | . . . . . 4 . 3 . . . 5 . . . 1 . . . . 2 . . . 2 . . . . Parts Repaired 10 | . 1 . . . 6 . 1 . . . 1 . . . 1 . . . . . . . . . . . . . Time 399 | . 26 . . . 211 . 44 . . . 62 . . . 56 . . . . . . . . . . . . . Parts Recycled . | . . . . . . . . . . . . . . . . . . . . . . . . . . . . . Recycled Matter . | . . . . . . . . . . . . . . . . . . . . . . . . . . . . . Retrieved Matter . | . . . . . . . . . . . . . . . . . . . . . . . . . . . . . Retrieved Components 1 | . . . . . . . . . . . . . . . 1 . . . . . . . . . . . . . Parts Scanalyzed 2 | . . . . . 2 . . . . . . . . . . . . . . . . . . . . . . . Part Schematics Acquired 2 | . . . . . 2 . . . . . . . . . . . . . . . . . . . . . . . Parts Damaged . | . . . . . . . . . . . . . . . . . . . . . . . . . . . . . Bothacking | -11 -10 -10 -10 -9 -8 -8 -8 -8 -7 -7 -6 -6 -6 -6 -5 -5 -5 -4 -4 -3 -3 -2 -2 -2 -2 -2 -2 -1 ------------ Run | Yrd Mat Min Exi Min Mat Gar Mat Gar Fac Gar Fac Gar Fac Gar Fac Gar Fac Fac Gar Res Gar Res Gar Res Gar Res Gar Acc Used RIF Installer 13 | . . . . . . 2 . 1 . 2 . 1 . 1 . 1 . . 1 . 1 . . . 1 . 2 . Coupler Efficiency 1 | . . . . . . . . . . 1 . . . . . . . . . . . . . . . . . . Hotswap 1 | . . . . . . 1 . . . . . . . . . . . . . . . . . . . . . . Code Merge 1 | . . . . . . . . . . . . . . . . . . . . . 1 . . . . . . . Command Fork 1 | . . . . . . . . . . . . . . . . . . . . . . . . . . . 1 . Threat Obfuscator 1 | . . . . . . . . 1 . . . . . . . . . . . . . . . . . . . . Signal Jammer 1 | . . . . . . . . . . . . . . 1 . . . . . . . . . . . . . . Zone Cloak 1 | . . . . . . . . . . . . . . . . . . . . . . . . . . . 1 . Watcher Feeds 1 | . . . . . . . . . . 1 . . . . . . . . . . . . . . . . . . Alert ID Control 1 | . . . . . . . . . . . . 1 . . . . . . . . . . . . . . . . Structural Interface 1 | . . . . . . . . . . . . . . . . . . . . . . . . . 1 . . . Autooverride 1 | . . . . . . . . . . . . . . . . . . . 1 . . . . . . . . . Crosswire 1 | . . . . . . . . . . . . . . . . 1 . . . . . . . . . . . . Robots Hacked 75 | . . 1 3 . . . . . . 1 4 . 1 1 . 1 5 3 1 6 1 . 6 6 1 3 8 23 Non-combat 25 | . . . 3 . . . . . . . 1 . . . . . 3 2 . 3 . . . . . 2 . 11 Combat 50 | . . 1 . . . . . . . 1 3 . 1 1 . 1 2 1 1 3 1 . 6 6 1 1 8 12 Autooverrided 8 | . . . . . . . . . . . . . . . . . . . . . . . 1 2 . . 1 4 Robot Hacks Applied 76 | . . 1 3 . . . . . . 1 6 . 2 1 . 1 6 3 1 6 1 . 5 5 1 3 7 23 parse_system 13 | . . 1 3 . . . . . . 1 . . . 1 . . 1 . . . . . 1 . . . 1 4 find_chute 2 | . . . . . . . . . . . 1 . . . . . . 1 . . . . . . . . . . map_walls 4 | . . . . . . . . . . . . . . . . . . . . . . . . . . . . 4 map_earth 1 | . . . . . . . . . . . . . . . . . . . . . . . . . . . . 1 drop_inventory 8 | . . . . . . . . . . . . . . . . . 1 1 . 3 . . . . . 2 . 1 redirect_shields 1 | . . . . . . . . . . . . . . . . . . . . . . . . . . . . 1 find_garrison 8 | . . . . . . . . . . . 2 . 1 . . . 1 1 . . . . . 2 . 1 . . amplify_resonance 8 | . . . . . . . . . . . . . . . . . . . . . . . . 2 . . 1 5 overwrite_iff 16 | . . . . . . . . . . . . . . . . . 1 . . . 1 . 4 1 1 . 4 4 formatsys_low 5 | . . . . . . . . . . . . . . . . . 2 . . . . . . . . . . 3 formatsys_high 10 | . . . . . . . . . . . 3 . 1 . . 1 . . 1 3 . . . . . . 1 . Relay Couplers Released 31 | . . . . . . . . . . . . 4 . . . 6 . . 11 . . . . . 5 . 5 . Machine Destruction 27 | . . . . . . . . . . . . . . . . 6 . . 11 . . . . . 5 . 5 . Programmers 4 | . . . . . . . . . . . . 4 . . . . . . . . . . . . . . . . Attached 13 | . . . . . . . . . . . 1 . 1 . 1 1 1 . . 2 1 1 . 1 1 . 2 . Crosswired 17 | . . . . . . . . . . . . . . . . 1 . . 2 . 5 . . . 5 . 4 . Merged Code Value 205 | . . . . . . . . . . . . . . . . . . . . . 54 . . . 96 . 55 . Fabnet Peak Effective % . | . . . . . . . . . . . . . . . . . . . . . . . . . . . . . Robots Rewired 32 | . . . . . . 1 . . . 4 . 2 . . . 3 . . 3 . 1 . 12 . . . 6 . Allies Hacked 3 | . . . . . . . . . . . . . . . . . . . . . . . 1 . . . 2 . Hacks Repelled . | . . . . . . . . . . . . . . . . . . . . . . . . . . . . . Allies | -11 -10 -10 -10 -9 -8 -8 -8 -8 -7 -7 -6 -6 -6 -6 -5 -5 -5 -4 -4 -3 -3 -2 -2 -2 -2 -2 -2 -1 -------- Run | Yrd Mat Min Exi Min Mat Gar Mat Gar Fac Gar Fac Gar Fac Gar Fac Gar Fac Fac Gar Res Gar Res Gar Res Gar Res Gar Acc Total Allies 94 | . . 2 . 3 4 1 . 2 . 4 3 2 1 2 1 6 3 . 4 3 3 . 17 3 1 . 12 17 Largest Group 7 | . . 2 2 3 3 2 1 2 . 4 2 2 2 3 1 3 3 . 4 2 2 2 7 2 1 . 4 4 Highest-Rated Group 483 | . . 49 49 40 30 26 10 62 . 48 58 58 58 126 10 198 159 . 179 105 194 194 442 106 58 . 416 483 Highest-Rated Ally 219 | . . 31 31 16 10 16 10 31 . 12 29 29 29 51 10 99 99 . 58 58 148 148 148 58 58 . 148 219 Total Orders 77 | . . . . . 11 23 . . . . . . . 1 6 5 14 . 6 4 1 . 2 . . . 1 3 STAY 32 | . . . . . 6 14 . . . . . . . 1 . 3 3 . 3 . . . 1 . . . 1 . FOLLOW 21 | . . . . . 5 9 . . . . . . . . . 2 1 . 3 . . . 1 . . . . . AID 4 | . . . . . . . . . . . . . . . . . 1 . . . . . . . . . . 3 EXPLORE 12 | . . . . . . . . . . . . . . . 3 . 5 . . 3 1 . . . . . . . RETURN 8 | . . . . . . . . . . . . . . . 3 . 4 . . 1 . . . . . . . . Ally Attacks 527 | . . 2 . 34 . 6 . 15 . 17 19 4 10 12 . 47 9 . 33 7 3 4 122 6 2 . 63 112 Total Damage 20979 | . . 43 . 284 . 92 . 202 . 140 245 69 160 300 . 1912 338 . 932 218 138 104 4507 254 62 . 1818 9161 Kills 105 | . . 1 . 4 . 1 . 3 . 2 2 2 . 2 . 14 1 . 4 1 . 2 17 . . . 11 38 Allies Corrupted 2 | . . . . . . . . . . . . . . . . . 1 . . . . . 1 . . . . . Allies Melted 3 | . . . . . . . . . . . . . . 1 . . . . . . . . . . . . 1 1 Field Lobotomies 4 | . . . . . . . . . . . . . . . . . . . . . . . . . . . . 4 Intel | -11 -10 -10 -10 -9 -8 -8 -8 -8 -7 -7 -6 -6 -6 -6 -5 -5 -5 -4 -4 -3 -3 -2 -2 -2 -2 -2 -2 -1 ------- Run | Yrd Mat Min Exi Min Mat Gar Mat Gar Fac Gar Fac Gar Fac Gar Fac Gar Fac Fac Gar Res Gar Res Gar Res Gar Res Gar Acc Active Infowar (turns) 17396 | 66 2041 1993 1146 80 . . . . 1263 471 1617 332 429 1192 348 1647 648 391 96 486 . . 450 319 . 362 4 2015 Sensors 363 | . . . . . . . . . . . . . . . . . . . . . . . . . . 360 3 . Seismic 16235 | 66 2041 1993 1146 80 . . . . 1263 471 1613 323 429 1155 348 1647 648 362 . 486 . . . . . 362 4 1798 Jamming 1283 | . . . . . . . . . . . 4 9 . 115 . . . 74 96 . . . 450 318 . . . 217 ECM 1 | . . . . . . . . . . . . . . . . . . . . . . . . 1 . . . . Robot Analysis Total 3 | . 2 . . . . . . . . . 1 . . . . . . . . . . . . . . . . . Derelict Logs Recovered 3 | . . 2 . 1 . . . . . . . . . . . . . . . . . . . . . . . . Drone Launches 12 | . . . . . . . . . . . . . . . 3 . 5 . . 3 1 . . . . . . . Drone Recoveries 8 | . . . . . . . . . . . . . . . 3 . 3 . . 2 . . . . . . . . Exploration | -11 -10 -10 -10 -9 -8 -8 -8 -8 -7 -7 -6 -6 -6 -6 -5 -5 -5 -4 -4 -3 -3 -2 -2 -2 -2 -2 -2 -1 ------------- Run | Yrd Mat Min Exi Min Mat Gar Mat Gar Fac Gar Fac Gar Fac Gar Fac Gar Fac Fac Gar Res Gar Res Gar Res Gar Res Gar Acc Turns Passed 45184 | 82 3556 2012 1149 2194 5057 1975 2316 1947 1303 2022 1929 1528 543 1726 348 1647 830 396 1553 655 1154 340 987 1180 1329 362 2185 2879 Spaces Moved 19334 | 20 1311 744 355 660 2028 767 983 851 537 772 995 629 291 770 194 834 406 180 811 329 525 90 512 582 669 215 911 1363 Core . | . . . . . . . . . . . . . . . . . . . . . . . . . . . . . Treads 18695 | 20 1311 744 355 660 2028 767 983 851 537 772 995 629 291 770 194 834 406 180 811 329 525 90 512 582 669 215 272 1363 Legs 639 | . . . . . . . . . . . . . . . . . . . . . . . . . . . 639 . Wheels . | . . . . . . . . . . . . . . . . . . . . . . . . . . . . . Hover . | . . . . . . . . . . . . . . . . . . . . . . . . . . . . . Flight . | . . . . . . . . . . . . . . . . . . . . . . . . . . . . . Fastest Speed 145 | 160 160 240 320 320 160 200 200 200 200 160 160 160 160 160 160 160 160 160 150 145 145 155 160 155 155 155 155 155 Average Speed 191 | 160 221 255 320 320 207 200 200 200 200 193 160 178 160 162 160 160 160 160 155 160 172 159 160 158 158 155 188 162 Slowest Speed 340 | 160 240 320 320 320 320 200 200 200 200 210 160 240 160 240 160 160 240 240 160 225 232 160 160 232 245 155 340 245 Overloaded Moves . | . . . . . . . . . . . . . . . . . . . . . . . . . . . . . Propulsion Burnouts . | . . . . . . . . . . . . . . . . . . . . . . . . . . . . . Robots Hopped . | . . . . . . . . . . . . . . . . . . . . . . . . . . . . . Potential Cave-ins 15 | . . . . . . . . . . . . . . . . . . . . . . . . 13 . . . 2 Cave-ins Triggered . | . . . . . . . . . . . . . . . . . . . . . . . . . . . . . Exploration Rate (%) 56 | 3 99 99 71 99 84 89 63 93 16 91 30 84 10 93 12 95 24 10 91 14 72 4 45 27 69 7 96 34 Regions Visited 28 Branch Regions 3 Pre-discovered Areas 9 | . 2 . 1 1 3 . 2 . . . . . . . . . . . . . . . . . . . . . Known Exits Taken 11 | . . . . . 1 . 1 . 1 . 1 . 1 . 1 . . 1 . 1 . 1 . 1 . 1 . . Unknown Exits Taken 6 | 1 1 1 1 1 . . . . . . . . . . . . 1 . . . . . . . . . . . Scrap Searched 5 | . . 1 . 4 . . . . . . . . . . . . . . . . . . . . . . . . Spaces Dug 344 | . 15 . . . 2 18 6 26 14 38 8 . 2 25 1 12 3 8 20 1 26 2 11 26 28 . 21 31 Terrain Destroyed 831 | . 19 . . 24 2 28 9 57 14 42 12 10 3 39 1 16 29 11 72 2 86 5 62 51 76 3 67 91 Melee 88 | . . . . . 1 18 1 15 12 25 . . . 12 1 1 . . . . 2 . . . . . . . Projectile 336 | . 19 . . . 1 . 8 1 2 . 12 . 3 . . . 5 11 13 2 28 5 8 51 22 3 67 75 AOE 407 | . . . . 24 . 10 . 41 . 17 . 10 . 27 . 15 24 . 59 . 56 . 54 . 54 . . 16 Terrain Rammed . | . . . . . . . . . . . . . . . . . . . . . . . . . . . . . Walls Destroyed . | . . . . . . . . . . . . . . . . . . . . . . . . . . . . . Machines Disabled . | . . . . . . . . . . . . . . . . . . . . . . . . . . . . . Actions | -11 -10 -10 -10 -9 -8 -8 -8 -8 -7 -7 -6 -6 -6 -6 -5 -5 -5 -4 -4 -3 -3 -2 -2 -2 -2 -2 -2 -1 --------- Run | Yrd Mat Min Exi Min Mat Gar Mat Gar Fac Gar Fac Gar Fac Gar Fac Gar Fac Fac Gar Res Gar Res Gar Res Gar Res Gar Acc Total 25263 | 54 1790 803 366 715 2632 1001 1235 987 691 1095 1203 842 346 1047 231 1022 497 245 1072 453 740 286 665 828 912 243 1341 1921 Wait 2210 | 21 336 11 . 20 399 71 154 19 90 45 62 43 16 82 26 63 23 17 50 53 49 176 24 92 33 1 61 173 Move 19314 | 19 1310 743 354 659 2028 766 982 850 537 771 995 628 291 769 194 832 405 180 810 329 524 90 511 582 668 215 910 1362 Hop . | . . . . . . . . . . . . . . . . . . . . . . . . . . . . . Pick Up 225 | 2 22 7 4 5 35 4 8 6 4 9 11 6 4 14 5 4 1 5 23 5 7 2 . 4 10 . 12 6 Fast Attach 71 | 1 . . . . 11 2 1 . 1 2 1 1 . 3 . 1 2 3 3 . 7 . 1 2 5 . 13 11 Attach 92 | . 1 . . . 5 1 . . 2 3 3 2 . 8 2 3 2 5 8 4 5 3 4 3 8 . 8 12 Detach 24 | . . . . . . 1 . . . . . . . 2 . 1 1 1 5 1 5 2 . . . . 4 1 Swap 555 | 2 30 8 5 11 16 34 14 29 6 37 38 42 14 40 1 35 20 11 34 10 11 2 12 14 21 5 22 31 Drop 248 | . 13 7 . 6 19 9 16 10 2 24 13 7 7 11 2 4 1 . 27 2 11 1 . 5 6 2 31 12 Fire 2089 | 9 75 21 . 11 111 57 53 33 31 153 72 95 14 84 . 59 42 23 111 49 102 10 109 120 161 20 177 287 Melee 181 | . . 1 3 . 2 50 1 20 14 34 2 . . 32 1 2 . . 1 . 18 . . . . . . . Ram . | . . . . . . . . . . . . . . . . . . . . . . . . . . . . . Kick . | . . . . . . . . . . . . . . . . . . . . . . . . . . . . . Crush 46 | . 3 5 . 3 2 1 6 . . 1 6 . . 2 . . . . . . 1 . 4 6 . . 1 5 Escape Stasis 70 | . . . . . . 4 . 12 4 10 . 10 . . . . . . . . . . . . . . 25 5 Rewire 99 | . . . . . . 1 . . . 6 . . . . . 15 . . . . . . . . . . 77 . Trap 4 | . . . . . 4 . . . . . . . . . . . . . . . . . . . . . . . Miscellaneous 35 | . . . . . . . . 8 . . . 8 . . . 3 . . . . . . . . . . . 16 Route ------- -11/Scrapyard -10/Materials (discovered 5 exits: [*Mat x3] / [*Min] / [*Sub]) -10/Mines (discovered 4 exits: [*Mat x2] / *Exi / [*Sub]) -10/Exiles (discovered 2 exits: [*Min x2]) -9/Mines (discovered 2 exits: *Mat x2) -8/Materials (discovered 4 exits: *Fac x2 / [*Sto] / Gar) -8/Garrison (discovered 3 exits: *Mat x3) -8/Materials (discovered 4 exits: *Fac x3 / Gar) -8/Garrison (discovered 3 exits: *Fac x3) -7/Factory (discovered 4 exits: Fac / *Low x2 / Gar) -7/Garrison (discovered 3 exits: *Fac x3) -6/Factory (discovered 3 exits: *Low x2 / Gar) -6/Garrison (discovered 3 exits: *Fac x3) -6/Factory -6/Garrison (discovered 3 exits: *Fac x3) -5/Factory (discovered 2 exits: [*Upp] / Gar) -5/Garrison (discovered 4 exits: *Fac x3 / *Fac) -5/Factory -4/Factory (discovered 2 exits: Ext / Gar) -4/Garrison (discovered 3 exits: *Res x3) -3/Research -3/Garrison (discovered 3 exits: *Res x3) -2/Research (discovered 2 exits: *Acc / Gar) -2/Garrison -2/Research (discovered 2 exits: *Acc / Gar) -2/Garrison (discovered 3 exits: *Acc x2 / *Res) -2/Research (discovered 2 exits: *Acc / Gar) -2/Garrison (discovered 3 exits: *Acc x3) -1/Access To Epsilon Eridani History --------- Turn | Location | Event 12 | -11/Scrapyard | Discovered new exit (range 2) 83 | -11/Scrapyard | Entered Materials 266 | -10/Materials | Discovered new exit (range 14) 312 | -10/Materials | Build established: Mutant 582 | -10/Materials | Discovered new exit (range 15) 762 | -10/Materials | Repaired Hcp. Storage Unit 783 | -10/Materials | Derelicts attacked the area 2079 | -10/Materials | Discovered new exit (range 8) 2163 | -10/Materials | Central database locked down 2283 | -10/Materials | Discovered new exit (range 15) 2756 | -10/Materials | Discovered new exit (range 7) 3639 | -10/Materials | Entered Mines 3786 | -10/Mines | Assembled infested the area 3843 | -10/Mines | Met 8R-AWN 3912 | -10/Mines | Discovered new exit (range 5) 4217 | -10/Mines | Learned Materials emergency access door positions 4373 | -10/Mines | Discovered new exit (range 11) 4767 | -10/Mines | Discovered new exit (range 7) 4949 | -10/Mines | Learned Materials emergency access door positions 5031 | -10/Mines | Discovered new exit (range 9) 5033 | -10/Mines | Joined a pair of Derelicts in attacking an 0b10 outpost 5651 | -10/Mines | Entered Exiles 5651 | -10/Exiles | Accompanied by 2 allies 5681 | -10/Exiles | Led the pair of lost Derelicts to a safe place 5696 | -10/Exiles | Discovered new exit (range 15) 5770 | -10/Exiles | Welcomed by 8R-AWN 5821 | -10/Exiles | Met EX-HEX 5981 | -10/Exiles | Met EX-DEC 6072 | -10/Exiles | Learned location of Zion (-6) 6342 | -10/Exiles | Met EX-BIN 6382 | -10/Exiles | Aligned with FarCom system 6385 | -10/Exiles | Given EX-Vault access code 6462 | -10/Exiles | Opened EX-Vault 6481 | -10/Exiles | Found Chronowheel 6488 | -10/Exiles | Found Field Lobotomy Kit 6492 | -10/Exiles | Found Latent Energy Streamer 6557 | -10/Exiles | Warned to stay clear of 0b10 Research branches 6762 | -10/Exiles | Discovered new exit (range 14) 6800 | -10/Exiles | Stole three prototypes: Chronowheel, Latent Energy Streamer, Field Lobotomy Kit 6800 | -10/Exiles | Entered Mines 6831 | -9/Mines | Met a Derelict bent on vengeance 6894 | -9/Mines | Assisted by bots powering up and referring to "LRC-V3" 7069 | -9/Mines | Excavation squad dispatched 7069 | -9/Mines | A large section of the Mines collapsed 7456 | -9/Mines | A weapon hastily lodged in a ceiling crevice suddenly fell to the ground 7672 | -9/Mines | Found DCF Scrap (14 items) 7675 | -9/Mines | Learned location of Storage (-8) 8082 | -9/Mines | Discovered new exit (range 11) 8728 | -9/Mines | Discovered new exit (range 8) 8994 | -9/Mines | Entered Materials 8994 | -8/Materials | Evolved 4 slots: Propulsion x1, Utility x2, Weapon x1 9288 | -8/Materials | Build established: Tank 9876 | -8/Materials | Discovered new exit (range 9) 10435 | -8/Materials | Discovered new exit (range 12) 11870 | -8/Materials | Build established: Skirmisher 12323 | -8/Materials | Repaired Hvy. Armor Plating 13108 | -8/Materials | Learned 4 Recycling zone layouts 13164 | -8/Materials | Discovered new exit (range 14) 13182 | -8/Materials | Learned 8 Factory zone layouts 13203 | -8/Materials | Learned Factory recycling unit intel 13214 | -8/Materials | Learned location of Lower Caves (-7) 13217 | -8/Materials | Learned 2 Lower Caves zone layouts 13257 | -8/Materials | Learned Storage stockpile data 13333 | -8/Materials | Garrison activated, responded to threat 13713 | -8/Materials | Repaired Huge Storage Unit 13822 | -8/Materials | Repaired Lgt. Treads+ 13855 | -8/Materials | Repaired Imp. Treads+ 13895 | -8/Materials | Repaired Hvy. Armor Plating 13947 | -8/Materials | Repaired Imp. Assault Rifle 14051 | -8/Materials | Identified exit to Garrison 14051 | -8/Materials | Entered Garrison 14051 | -8/Garrison | Accompanied by 1 ally 14104 | -8/Garrison | Installed Relay Interface Framework 14219 | -8/Garrison | Triggered checkpoint 14307 | -8/Garrison | Expanded RIF knowledge: Hotswap 14603 | -8/Garrison | Triggered checkpoint 14698 | -8/Garrison | Discovered new exit (range 14) 14957 | -8/Garrison | Triggered checkpoint 15122 | -8/Garrison | Discovered new exit (range 13) 15415 | -8/Garrison | Triggered checkpoint 15795 | -8/Garrison | Triggered checkpoint 15973 | -8/Garrison | Discovered new exit (range 13) 16026 | -8/Garrison | Entered Materials 16026 | -8/Materials | Accompanied by 1 ally 16164 | -8/Materials | Garrison activated, responded to threat 16690 | -8/Materials | Build established: Scavenger-Skirmisher 16739 | -8/Materials | Discovered new exit (range 3) 17351 | -8/Materials | Repaired Hrd. Heavy Armor Plating 17780 | -8/Materials | Learned Factory repair station intel 17861 | -8/Materials | Identified exit to Garrison 17872 | -8/Materials | Learned location of 2 exits from Factory 17904 | -8/Materials | Learned location of 1 exit from Storage 17934 | -8/Materials | Identified exit to Factory 17956 | -8/Materials | Learned location of 1 exit from Storage 18033 | -8/Materials | Build established: Scientist-Skirmisher 18342 | -8/Materials | Entered Garrison 18463 | -8/Garrison | Rescued a captive Derelict 18464 | -8/Garrison | Rescued a captive Derelict 18525 | -8/Garrison | Expanded RIF knowledge: Threat Obfuscation 18775 | -8/Garrison | Triggered checkpoint 18836 | -8/Garrison | Triggered checkpoint 18926 | -8/Garrison | Triggered checkpoint 18984 | -8/Garrison | Discovered exit to Factory (range 14) 19016 | -8/Garrison | Learned Factory security intel 19113 | -8/Garrison | Build established: Skirmisher 19472 | -8/Garrison | Triggered checkpoint 20015 | -8/Garrison | Build established: Mutant 20289 | -8/Garrison | Entered Factory 20289 | -7/Factory | Evolved 2 slots: Propulsion x1, Utility x1 20290 | -7/Factory | Identified exit to Lower Caves 20291 | -7/Factory | Identified exit to Factory 20291 | -7/Factory | FarCom data flow suspended 20294 | -7/Factory | Loaded intel: 6 repair station locations 20295 | -7/Factory | Loaded intel: 6 recycling unit locations 20590 | -7/Factory | Build established: Scavenger-Mutant 21592 | -7/Factory | Identified exit to Garrison 21592 | -7/Factory | Entered Garrison 21786 | -7/Garrison | Triggered checkpoint 22067 | -7/Garrison | Discovered exit to Factory (range 14) 22097 | -7/Garrison | Build established: Scavenger-Gunner 22150 | -7/Garrison | Triggered checkpoint 22200 | -7/Garrison | Expanded RIF knowledge: Watcher Feeds 22202 | -7/Garrison | Lost 3 allies 22526 | -7/Garrison | Triggered checkpoint 22572 | -7/Garrison | Heavy support dispatched to Factory 22710 | -7/Garrison | H-XX Assembler disabled 22811 | -7/Garrison | Discovered exit to Factory (range 15) 22898 | -7/Garrison | Expanded RIF knowledge: Coupler Efficiency 23285 | -7/Garrison | Build established: Mutant 23502 | -7/Garrison | Discovered exit to Factory (range 13) 23548 | -7/Garrison | Triggered checkpoint 23614 | -7/Garrison | Entered Factory 23614 | -6/Factory | Evolved 2 slots: Power x1, Utility x1 23716 | -6/Factory | Found Exp. Targeting Computer 23821 | -6/Factory | Discovered new exit (range 8) 23855 | -6/Factory | Identified exit to Lower Caves 24016 | -6/Factory | Build established: Tank 24767 | -6/Factory | Repaired Imp. Heavy Treads 25471 | -6/Factory | Garrison activated, responded to threat 25543 | -6/Factory | Identified exit to Garrison 25543 | -6/Factory | Entered Garrison 25759 | -6/Garrison | Triggered checkpoint 25844 | -6/Garrison | Spotted B-75 Beast 25858 | -6/Garrison | Triggered checkpoint 25867 | -6/Garrison | Destroyed B-75 Beast 26190 | -6/Garrison | Expanded RIF knowledge: Alert ID Control 26219 | -6/Garrison | Discovered new exit (range 12) 26415 | -6/Garrison | Destroyed 7 combat bots 26419 | -6/Garrison | Build established: Scavenger-Tank 26467 | -6/Garrison | Triggered checkpoint 26484 | -6/Garrison | Discovered new exit (range 10) 26633 | -6/Garrison | Triggered checkpoint 26811 | -6/Garrison | Triggered checkpoint 26952 | -6/Garrison | Discovered new exit (range 15) 27071 | -6/Garrison | Entered Factory 27071 | -6/Factory | Accompanied by 2 allies 27614 | -6/Factory | Identified exit to Garrison 27614 | -6/Factory | Entered Garrison 27614 | -6/Garrison | Accompanied by 1 ally 27722 | -6/Garrison | Rescued a captive Derelict 27725 | -6/Garrison | Rescued a captive Derelict 27766 | -6/Garrison | Triggered checkpoint 27835 | -6/Garrison | Spotted B-75 Beast 27844 | -6/Garrison | Triggered checkpoint 27850 | -6/Garrison | Destroyed B-75 Beast 27883 | -6/Garrison | Lost 3 allies 27991 | -6/Garrison | Destroyed 8 combat bots 28062 | -6/Garrison | Discovered new exit (range 12) 28100 | -6/Garrison | Triggered checkpoint 28159 | -6/Garrison | Spotted Executioner 28161 | -6/Garrison | Spotted Striker 28194 | -6/Garrison | Destroyed Striker 28213 | -6/Garrison | Lost 3 parts (2u1w) 28219 | -6/Garrison | Core integrity fell below 50% 28229 | -6/Garrison | Destroyed Executioner 28241 | -6/Garrison | Found Adv. Kinecellerator 28370 | -6/Garrison | Triggered checkpoint 28479 | -6/Garrison | Found Quantum Capacitor 28574 | -6/Garrison | Discovered new exit (range 10) 28651 | -6/Garrison | Triggered checkpoint 28763 | -6/Garrison | Triggered checkpoint 28796 | -6/Garrison | Expanded RIF knowledge: Signal Jamming 28920 | -6/Garrison | Triggered checkpoint 29026 | -6/Garrison | Discovered new exit (range 13) 29340 | -6/Garrison | Entered Factory 29340 | -5/Factory | Evolved 2 slots: Utility x2 29344 | -5/Factory | Build established: Scavenger-Mutant 29534 | -5/Factory | Repaired Adv. Shield Generator 29681 | -5/Factory | Discovered new exit (range 10) 29683 | -5/Factory | Identified exit to Garrison 29688 | -5/Factory | Entered Garrison 29688 | -5/Garrison | Accompanied by 1 ally 29748 | -5/Garrison | Triggered checkpoint 29794 | -5/Garrison | Garrison Relay disabled 29984 | -5/Garrison | Triggered checkpoint 29995 | -5/Garrison | Triggered checkpoint 30020 | -5/Garrison | Build established: Scavenger-Tank 30032 | -5/Garrison | Triggered checkpoint 30262 | -5/Garrison | Triggered checkpoint 30341 | -5/Garrison | Discovered new exit (range 10) 30513 | -5/Garrison | Found embedded Infiltrators 30518 | -5/Garrison | Discovered new exit (range 10) 30520 | -5/Garrison | Triggered checkpoint 30688 | -5/Garrison | Triggered checkpoint 30802 | -5/Garrison | Expanded RIF knowledge: Crosswire 30838 | -5/Garrison | Spotted Executioner 30839 | -5/Garrison | Spotted Executioner 30852 | -5/Garrison | Allies destroyed Executioner 30854 | -5/Garrison | Destroyed Executioner 30886 | -5/Garrison | Rewired Striker 30922 | -5/Garrison | Discovered new exit (range 10) 30964 | -5/Garrison | Triggered checkpoint 30989 | -5/Garrison | Discovered new exit (range 3) 31199 | -5/Garrison | Triggered checkpoint 31241 | -5/Garrison | Garrison Relay disabled 31335 | -5/Garrison | Entered Factory 31335 | -5/Factory | Accompanied by 1 ally 31523 | -5/Factory | Unchained authorized (CL-0N3) 31718 | -5/Factory | U-05 Engineer reconstituted as Lightning 31718 | -5/Factory | Spotted Lightning 31722 | -5/Factory | Destroyed Lightning 31722 | -5/Factory | Lightning reconstituted as CL-0N3 31983 | -5/Factory | T-07 Excavator reconstituted as Armor Guard 31983 | -5/Factory | Spotted Armor Guard 32011 | -5/Factory | Destroyed Armor Guard 32011 | -5/Factory | Armor Guard reconstituted as CL-0N3 32059 | -5/Factory | Discovered new exit (range 15) 32138 | -5/Factory | Cargo convoy interrupted 32165 | -5/Factory | Entered another Factory area 32165 | -4/Factory | Evolved 2 slots: Propulsion x1, Utility x1 32166 | -4/Factory | Identified exit to Extension 32322 | -4/Factory | Build established: Scavenger-Gunner 32561 | -4/Factory | Identified exit to Garrison 32561 | -4/Factory | Entered Garrison 32710 | -4/Garrison | Triggered checkpoint 32783 | -4/Garrison | Spotted Striker 32784 | -4/Garrison | Spotted Executioner 32993 | -4/Garrison | Triggered checkpoint 33109 | -4/Garrison | Triggered checkpoint 33143 | -4/Garrison | Discovered new exit (range 14) 33268 | -4/Garrison | Triggered checkpoint 33303 | -4/Garrison | Triggered checkpoint 33345 | -4/Garrison | Lost 3 allies 33440 | -4/Garrison | Build established: Bothacker-Gunner 33490 | -4/Garrison | Discovered new exit (range 7) 33495 | -4/Garrison | Phase Generator disabled 33579 | -4/Garrison | Triggered checkpoint 33609 | -4/Garrison | Garrison Relay disabled 33811 | -4/Garrison | Triggered checkpoint 33841 | -4/Garrison | Garrison Relay disabled 33842 | -4/Garrison | Build established: Scavenger-Mutant 33886 | -4/Garrison | Discovered new exit (range 14) 33920 | -4/Garrison | Expanded RIF knowledge: Autooverride 34114 | -4/Garrison | Entered Research 34114 | -3/Research | Evolved 2 slots: Power x1, Utility x1 34316 | -3/Research | Identified exit to Garrison 34318 | -3/Research | Unchained authorized (CL-0N3) 34466 | -3/Research | Build established: Mutant 34598 | -3/Research | Veteran 8b reconstituted as Armor Guard 34598 | -3/Research | Spotted Armor Guard 34598 | -3/Research | P-80 Master assimilated allied Enforcer 8a 34643 | -3/Research | Destroyed Armor Guard 34643 | -3/Research | Armor Guard reconstituted as CL-0N3 34769 | -3/Research | Entered Garrison 34801 | -3/Garrison | Discovered new exit (range 68) 34801 | -3/Garrison | Discovered new exit (range 89) 34801 | -3/Garrison | Discovered new exit (range 60) 34865 | -3/Garrison | Learned Research security intel 34995 | -3/Garrison | Build established: Scavenger-Mutant 35019 | -3/Garrison | Spotted B-86 Titan 35094 | -3/Garrison | Destroyed B-86 Titan 35121 | -3/Garrison | Lost 4 parts (2p2u) 35205 | -3/Garrison | Triggered checkpoint 35347 | -3/Garrison | Expanded RIF knowledge: Code Merge 35683 | -3/Garrison | Triggered checkpoint 35745 | -3/Garrison | Triggered checkpoint 35785 | -3/Garrison | Rescued a captive Derelict 35853 | -3/Garrison | Rewired B-90 Cyclops 35860 | -3/Garrison | Spotted B-75 Beast 35923 | -3/Garrison | Entered Research 35923 | -2/Research | Accompanied by 2 allies 35923 | -2/Research | Evolved 2 slots: Propulsion x1, Utility x1 35950 | -2/Research | Discovered new exit (range 4) 35960 | -2/Research | P-80 Master assimilated allied 7D-N9U(g) 35999 | -2/Research | Identified exit to Access 36088 | -2/Research | Identified exit to Garrison 36173 | -2/Research | First assault squad dispatched 36263 | -2/Research | Entered Garrison 36263 | -2/Garrison | Accompanied by 1 ally 36393 | -2/Garrison | Triggered checkpoint 36491 | -2/Garrison | Lost 3 allies 36529 | -2/Garrison | Triggered checkpoint 36547 | -2/Garrison | Triggered checkpoint 36577 | -2/Garrison | Triggered checkpoint 36610 | -2/Garrison | Lost 3 allies 36791 | -2/Garrison | Spotted B-90 Cyclops 36808 | -2/Garrison | Destroyed B-90 Cyclops 36811 | -2/Garrison | Triggered checkpoint 36833 | -2/Garrison | Triggered checkpoint 36882 | -2/Garrison | Triggered checkpoint 36889 | -2/Garrison | Triggered checkpoint 36926 | -2/Garrison | Lost 5 allies 36936 | -2/Garrison | Build established: Scavenger-Gunner 36947 | -2/Garrison | Triggered checkpoint 37027 | -2/Garrison | Discovered new exit (range 15) 37061 | -2/Garrison | Spotted Executioner 37072 | -2/Garrison | Rewired Striker 37080 | -2/Garrison | Destroyed Striker 37080 | -2/Garrison | Destroyed Executioner 37250 | -2/Garrison | Entered Research 37481 | -2/Research | Found Prototype Device 37481 | -2/Research | Identified Exp. ECM Suite 37500 | -2/Research | First assault squad dispatched 37641 | -2/Research | Spotted B-90 Cyclops 37797 | -2/Research | Discovered exit to Access (range 9) 37884 | -2/Research | Spotted B-90 Cyclops 38042 | -2/Research | Identified exit to Garrison 38238 | -2/Research | Build established: Scavenger-Tank 38430 | -2/Research | Identified exit to Garrison 38430 | -2/Research | Entered Garrison 38647 | -2/Garrison | Triggered checkpoint 38750 | -2/Garrison | Triggered checkpoint 38786 | -2/Garrison | Spotted B-90 Cyclops 38806 | -2/Garrison | Destroyed 10 combat bots 38834 | -2/Garrison | Destroyed B-90 Cyclops 39033 | -2/Garrison | Phase Generator disabled 39086 | -2/Garrison | System corruption reached 10% 39118 | -2/Garrison | Triggered checkpoint 39232 | -2/Garrison | Discovered exit to Access (range 14) 39269 | -2/Garrison | Expanded RIF knowledge: Structural Interface 39478 | -2/Garrison | Triggered checkpoint 39543 | -2/Garrison | Discovered exit to Access (range 10) 39558 | -2/Garrison | Triggered checkpoint 39576 | -2/Garrison | Discovered new exit (range 3) 39635 | -2/Garrison | Triggered checkpoint 39666 | -2/Garrison | Spotted B-90 Cyclops 39691 | -2/Garrison | Spotted B-86 Titan 39759 | -2/Garrison | Entered Research 39802 | -2/Research | Discovered exit to Access (range 28) 40121 | -2/Research | Identified exit to Garrison 40121 | -2/Research | Entered Garrison 40263 | -2/Garrison | Triggered checkpoint 40302 | -2/Garrison | Garrison Relay disabled 40334 | -2/Garrison | P-80 Master assimilated allied DU-GAW(g) 40588 | -2/Garrison | Spotted B-90 Cyclops 40597 | -2/Garrison | Triggered checkpoint 40612 | -2/Garrison | Destroyed B-90 Cyclops 40619 | -2/Garrison | Triggered checkpoint 40672 | -2/Garrison | Lost 4 allies 40691 | -2/Garrison | Triggered checkpoint 40813 | -2/Garrison | Spotted B-90 Cyclops 40944 | -2/Garrison | Discovered exit to Access (range 12) 41030 | -2/Garrison | Lost 3 parts (1u2w) 41148 | -2/Garrison | Triggered checkpoint 41300 | -2/Garrison | Build established: Scavenger-Gunner 41573 | -2/Garrison | Rewired Executioner 41586 | -2/Garrison | Rewired Executioner 41630 | -2/Garrison | Expanded RIF knowledge: Command Fork 41641 | -2/Garrison | Discovered exit to Access (range 10) 41665 | -2/Garrison | Spotted B-90 Cyclops 41667 | -2/Garrison | Spotted B-86 Titan 41676 | -2/Garrison | Destroyed B-86 Titan 41692 | -2/Garrison | Allies destroyed B-90 Cyclops 41710 | -2/Garrison | Found Quantum Capacitor 41734 | -2/Garrison | Rewired B-90 Cyclops 41835 | -2/Garrison | Triggered checkpoint 41890 | -2/Garrison | Expanded RIF knowledge: Zone Cloak 41939 | -2/Garrison | Triggered checkpoint 41940 | -2/Garrison | Discovered exit to Access (range 15) 42015 | -2/Garrison | Build established: Scavenger-Mutant 42306 | -2/Garrison | Entered Access 42306 | -1/Access | Accompanied by 2 allies 42306 | -1/Access | Evolved 2 slots: Utility x2 42518 | -1/Access | Found Prototype Processor 42518 | -1/Access | Identified Exp. Core Analyzer 42523 | -1/Access | Found Exp. Targeting Computer 42806 | -1/Access | First assault squad dispatched 43171 | -1/Access | Spotted B-99 Colossus 43936 | -1/Access | Discovered new exit (range 8) 43999 | -1/Access | Spotted B-99 Colossus 44000 | -1/Access | Assimilated B-99 Colossus with FLK Orb 44003 | -1/Access | Spotted B-99 Colossus 44005 | -1/Access | Assimilated B-99 Colossus with FLK Orb 44073 | -1/Access | Energy Cycler disabled 44203 | -1/Access | Build established: Scavenger-Gunner 44660 | -1/Access | High security lockdown imminent 44740 | -1/Access | High security lockdown engaged 45032 | -1/Access | Spotted Investigator 45033 | -1/Access | Destroyed Investigator 45088 | -1/Access | Spotted Striker 45088 | -1/Access | Spotted Executioner 45091 | -1/Access | Spotted Executioner 45096 | -1/Access | Destroyed Executioner 45106 | -1/Access | Destroyed Striker 45111 | -1/Access | Destroyed Executioner 45131 | -1/Access | Lost 3 allies 45133 | -1/Access | Spotted Striker 45133 | -1/Access | Spotted Striker 45133 | -1/Access | Spotted Striker 45134 | -1/Access | P-80 Master assimilated allied G-73 Enforcer 45138 | -1/Access | Spotted Executioner 45161 | -1/Access | Assimilated Executioner with FLK Orb 45161 | -1/Access | Allies destroyed Striker 45163 | -1/Access | Assimilated Striker with FLK Orb 45167 | -1/Access | Destroyed Striker 45185 | *** | Escaped! Last Messages --------------- 45180_ Executioner critical meltdown. 45180_ M-36 Artificer repairs G-73 Enforcer Hvy. Laser. 45180_ W-44 Eye distress signal jammed. 45180_ I-47 Archangel distress signal jammed. 45180_ Imp. Heavy Treads destroyed. 45180_ W-44 Eye distress signal jammed. 45181_ G-73 Enforcer suffers critical hit (Meltdown). 45181_ Myomer Leg melted. 45181_ Adv. Heat Sink melted. 45181_ I-47 Archangel distress signal jammed. 45181_ Rnf. Quantum Reactor destroyed. 45181_ W-44 Eye distress signal jammed. 45182_ I-47 Archangel distress signal jammed. 45182_ Enh. Nova Cannon+ destroyed. 45182_ W-44 Eye distress signal jammed. 45183_ I-47 Archangel distress signal jammed. 45183_ W-44 Eye distress signal jammed. 45184_ Adv. Remote Datajack+ destroyed. 45184_ I-47 Archangel distress signal jammed. 45184_ W-44 Eye distress signal jammed. Map ----- +----------------------------------------------------+ | #################+##### ##############+###### | | ???????????????? ???#% # ## | | ???????????????? ???# # ## | | ??????????????? ??# # " ## | | ??????????????? ??# # """ "# #?##### | | ?????????????? ?# # """ ## #?????? | | ?????????????? ?# + " ## #?????? | | ????????????? # " ## #?????? | | ????????????? # # ## #?????? | | ????????????########### ############ ##????? | | ???????????????????# #??????# #????? | | ???????????????????# #??????# #????? | | ???????????????????# #??????# #????? | | ???????????????????# #??????# " #????? | | ???????????????????#% g #??????# #????? | | ???????????????????# #??????# #????? | | ???????????????????#%u |* #??????### ######## | | ???????????????????# %=%! #????????# #?# " | | ???????????????????# %! #??????### ### "" | | ???????????????????# %% #?????## # ## """ | | ???????????????????# gg #?????# # # # " | | ???????????????????# %=/ #?????# #= # # ! | | ?#######???????????# %%g=!%!k #?#####" #% # # | | ?# ! ???????????# g=%! #?# + # # | | ?# ???????????# !=![ #?# +% # " | | ?# ???????????# |%@%! #?# # # " | | ## ???????????# % im== #?# # ##"##### | | ## ##########?# %!%m%[! #?# # # ##???? | | ## #!!! #?# [!!%![%[ ### #= ###????# | | ## #!!! ### =%%===== ### [#% ######## | | ## ] #!!! ## ![!%*!%% ## %#%[ % %% = | | ## # [### !!/%/%! ### %#!!% % ! | | ?# # *%###" %!=!k/%*# # #%*######## | | ?# * ; !### /%%=%==#=# + !##?????? | | ?# # # # =%/%!%%#!# #%%##?????? | | ???! " #=# =%|!k!#!#! [# !##?????? | | ????? !# %; =%=*/!*=%!#[########|=##?????? | | #######+######+ ! gg!%==%*!%;*####### #?????? | | %%*|]]=!% !=g%g%*=%!%%[ %=!%%% %%% # #???? | | =*= %]]!u%% %*w *%%*=%=*C!%%%%% %* #?????? | | +###""#####+##### [% #!!####;######!##% ##????? | | #?# ! =%! A ] ## %!=[ ###########????? | | #?# ! %*! # # ### ## ##??????????????? | | #?# # ### #?#######???????????????? | | #?# ###?###???????????????????????? | | #?# ##??????????????????????????????? | | *#?# ???????????????????????????????? | | ### kk ???????????????????????????????? | | = + + #???????????????????????????????? | | #############???????????????????????????????? | +----------------------------------------------------+ Best States ------------- Heat Dissipation 171 Coolant Potential 100 Energy Generation 69 Energy Capacity 690 Matter Stores 300 Matter Capacity 300 Sight Range 16 Robot Scan Range 16 Terrain Scan Density 10 Jamming Range 16 Base Temperature (-) 200 Armor Coverage 800 Resistance: KI 30 Resistance: TH 15 Point Defense Rating 240 Weapon Cycling 25 Phase Shifting 15 Evasion (%) 55 Targeting Accuracy 12 Core Analysis 11 Recoil Reduction 6 Relay Coupler Types 6 Relay Coupler Value 206 Item Schematics ----------------- Huge Storage Unit | -10/Materials | Hacked Seismic Detector | -8/Materials | Scanalyzed Cooling System | -8/Materials | Scanalyzed Robot Schematics ------------------ M-13 Machinist | -10/Materials | Hacked Fabricated ------------ Nothing Repaired ---------- Hcp. Storage Unit | 31% | -10/Materials Hvy. Armor Plating | 15% | -8/Materials Huge Storage Unit | 52% | -8/Materials Lgt. Treads | 27% | -8/Materials Imp. Treads | 29% | -8/Materials Hvy. Armor Plating | 77% | -8/Materials Imp. Assault Rifle | 45% | -8/Materials Hrd. Heavy Armor Plating | 66% | -8/Materials Imp. Heavy Treads | 46% | -6/Factory Adv. Shield Generator | 42% | -5/Factory Studied --------- Lgt. Treads | -8/Materials | Hacked Imp. Treads | -8/Materials | Hacked Mni. Grenade Launcher | -8/Materials | Hacked Hvy. Assault Rifle | -8/Materials | Hacked Adv. Treads | -8/Materials | Hacked Minigun | -8/Materials | Hacked Hvy. Flail | -8/Materials | Hacked Gatling Laser | -6/Factory | Hacked Hvy. Plasma Cannon | -6/Factory | Hacked Hvy. Machine Gun | -6/Factory | Hacked Med. Treads | -6/Factory | Hacked Angular Momentum Engine | -6/Factory | Hacked Imp. Remote Datajack | -5/Factory | Hacked Enh. Nova Cannon | -3/Research | Hacked Quantum Reactor | -3/Research | Hacked Adv. Remote Datajack | -2/Research | Hacked Lgt. Quantum Reactor | -2/Research | Hacked Alien Tech Used ----------------- None Achievements -------------- RIFT Wizard Challenges ------------ None Game ------ Seed DisassembledBracePlatform Manual? 0 Play Time 07:32:15 Cumulative 426.9 hours Start 2025.12.10 @ 12:43:47 End 2025.12.10 @ 23:35:05 Sessions 1 Manual Loads 0 Difficulty Rogue Special Mode None Game No. 148 Rogue 148 Adventurer 0 Explorer 0 Win Type 0 Total 9 Types 5/0/2/1/0/0/1/0/0/0 Lore% 70 Gallery% 79 Achievement% 60 Wizard Run 0 Options --------- Layout 0 ASCII 0 Keyboard 0 Movement Numpad Keybinds 1 Fullscreen 2 Font 18/X11 Map View 76x50 Zoom Use 0% Tactical HUD 1 Map Filters NONE Filters NONE Steam 1 RUN: d8217b10-5e05-41df-b1dd-004fec08459b